Workbook

Sheet Start
B2: proPIR | E2: =Langue!F27 -> Outil de calcul PIR-RT2
E3: =Langue!F28 -> pour isolation de conduites dans le domaine thermique ou frigorifique
N4: =IF(N14="","Objektname",N14) -> Objektname
N5: =IF(N16="","Objektort",N16) -> Objektort
B6: =Langue!F320 -> swisspor AG | N6: =VLOOKUP(Langue!D8,Langue!C3:D4,2,) -> Français
B7: =Langue!F321 -> Industriestrasse | E7: =Langue!F33 -> Cet outil excel sert à calculer l'isolation de conduites et estimer les économies de coûts/énergie/CO₂ entre une isolation PIR et une isolation quelconque (variante 2). En ce qui concerne la technique de chauffage, cet outil calcule en outre la temperature de surface des conduites et donc les mesures de protection thermique ou frigorifique. L'eau de condensation et par conséquence, la protection contre l'humidité, est également estimée.
B8: =Langue!F322 -> CH-5623 Boswil
B9: =Langue!F323 -> Tel +41 (0) 56 678 98 98
B10: =Langue!F324 -> Fax +41 (0) 56 678 98 99
B11: =Langue!F325 -> www.swisspor.ch | E11: =Langue!F34 -> Ces calculs se limitent aux fluides et sont définis dans des des codes makros.
B13: =Langue!F327 -> Elri AG
B14: =Langue!F328 -> Gewerbestrasse 3 | E14: =Langue!F25 -> Client | F14: =Langue!F19 -> Entreprise | J14: =Langue!F14 -> Objet | L14: =Langue!F15 -> Nom
B15: =Langue!F329 -> CH-4552 Derendingen | F15: =Langue!F20 -> Responsable du dossier | L15: =Langue!F16 -> Rue
B16: =Langue!F330 -> Tel: +041 (0)32 681 33 11 | F16: =Langue!F16 -> Rue | L16: =Langue!F17 -> Lieu
B17: =Langue!F331 -> Fax: +041(0)32 682 15 05 | F17: =Langue!F17 -> Lieu
B18: =Langue!F332 -> www.elri.ch | F18: =Langue!F21 -> Tél. | J18: =Langue!F23 -> Date du calcul
F19: =Langue!F22 -> Email
B20: =Langue!F334 -> Regisol AG
B21: =Langue!F335 -> Schwalbenweg 3 | E21: =Langue!F18 -> Planificateur | F21: =Langue!F19 -> Entreprise | J21: =Langue!F24 -> Questions à | L21: =Langue!F20 -> Responsable du dossier
B22: =Langue!F336 -> CH-3292 Busswil bei Büren | F22: =Langue!F20 -> Responsable du dossier | L22: =Langue!F21 -> Tél.
B23: =Langue!F337 -> Tel: +041 (0)385 22 33 | F23: =Langue!F16 -> Rue | L23: =Langue!F26 -> Fax
B24: =Langue!F338 -> Fax: +041(0)385 22 35 | F24: =Langue!F17 -> Lieu | L24: =Langue!F22 -> Email
B25: =Langue!F339 -> www.regisol.ch | F25: =Langue!F21 -> Tél.
F26: =Langue!F22 -> Email
E27: =Langue!F29 -> Remarques
B35: Version 3.1 | E35: =Langue!F30 -> Cet outil a été créé par l'université appliquée de Lucerne dans l'interêt du développment de proPIR.
B36: DESIGN BY HSLU - T&A | E36: =Langue!F31 -> ProPIR ne prend pas la responsabilité des dégâts qui peuvent être engendrés par l'utilisation de cet outil.
B37: 3

Sheet Bases techniques
B2: proPIR | E2: =Start!E2 -> Outil de calcul PIR-RT2
E3: =Langue!F36 -> Données de base pour le calcul
M4: =Start!N4 -> Objektname
M5: =Start!N5 -> Objektort
B6: =Langue!F320 -> swisspor AG
B7: =Langue!F321 -> Industriestrasse | E7: =Langue!F103 -> Les valeurs définies sont des valeurs moyennes de différents produits du même type de matériau. | O7: V1 | Q7: =Langue!F86 -> PIR
B8: =Langue!F322 -> CH-5623 Boswil | E8: =Langue!F104 -> Pour des zones limites, des valeurs spécifiques attestées peuvent être insérées dans les cellules non protégées. | O8: V2 | Q8: =Langue!F87 -> Variante 2
B9: =Langue!F323 -> Tel +41 (0) 56 678 98 98 | O9: V1 | P9: V2 | Q9: =Langue!F85 -> Valeurs communes
B10: =Langue!F324 -> Fax +41 (0) 56 678 98 99 | J10: =Langue!F97 -> Isolation PIR | L10: =Langue!F98 -> Comparaison | M10: Kopieren | O10: =Langue!F268 -> Modifiable | Q10: =Langue!F88 -> Valeur proposée,
B11: =Langue!F325 -> www.swisspor.ch | J11: Variante 1 | L11: Variante 2 | M11: V1 -> V2 | O11: =Langue!F269 -> Modifiée | Q11: =Langue!F89 -> en partie modifiable
E12: =Langue!F38 -> Conduite
B13: =Langue!F327 -> Elri AG | E13: =Langue!F39 -> Matériau | J13: Acier | L13: =FeldRohrMaterial -> Acier | S13: FeldRohrMaterial | T13: =CONCATENATE(S13,"_V2") -> FeldRohrMaterial_V2
B14: =Langue!F328 -> Gewerbestrasse 3 | E14: =Langue!F40 -> Diffusion de chaleur | I14: lR | J14: 50 | L14: =FeldLambdaR -> 50 | M14: W/(mK) | S14: FeldLambdaR | T14: =CONCATENATE(S14,"_V2") -> FeldLambdaR_V2
B15: =Langue!F329 -> CH-4552 Derendingen | E15: =Langue!F41 -> Epaisseur paroi | I15: dR | J15: 3 | L15: =FeldDR -> 3 | M15: mm | S15: FeldDR | T15: FeldDR_V2
B16: =Langue!F330 -> Tel: +041 (0)32 681 33 11
B17: =Langue!F331 -> Fax: +041(0)32 682 15 05 | E17: =Langue!F42 -> Isolation
B18: =Langue!F332 -> www.elri.ch | E18: =Langue!F43 -> Matériau | J18: PIR (-40°C bis 120°C) | L18: Laine de roche (12°C bis 750°C) | O18: =Langue!F91 -> Choix matériau influence λD, u et Fli. | S18: FeldDämmMaterial | T18: FeldDämmMaterial_V2
E19: =Langue!F44 -> Donnée matériau, remarques pour propres données | S19: FeldDämmMaterial_Benutzer | T19: FeldDämmMaterial_Benutzer_V2
B20: =Langue!F334 -> Regisol AG | E20: =Langue!F45 -> Diffusion de chaleur déclarée à 10°C | I20: lD | J20: 0.0277 | L20: 0.0335 | M20: W/(mK) | S20: FeldLambdaVor | T20: FeldLambdaVor_V2
B21: =Langue!F335 -> Schwalbenweg 3 | E21: =Langue!F46 -> Diamètre intérieur de l'isolation | I21: diD | J21: 35 | L21: =FeldDiD -> 35 | M21: mm | S21: FeldDiD | T21: FeldDiD_V2
B22: =Langue!F336 -> CH-3292 Busswil bei Büren | E22: =Langue!F47 -> Epaisseur de l'isolation | I22: dD | J22: 40 | L22: 40 | M22: mm | S22: FeldDD | T22: FeldDD_V2
B23: =Langue!F337 -> Tel: +041 (0)385 22 33 | E23: =Langue!F48 -> Résistance de diffusion de vapeur | I23: u | J23: 50 | L23: 1 | M23: - | S23: FeldWasserdampfdiff | T23: FeldWasserdampfdiff_V2
B24: =Langue!F338 -> Fax: +041(0)385 22 35 | E24: =Langue!F49 -> Supplément appuis (p.ex. Collier de serrage, étais) | J24: Aucun appui | L24: Aucun appui | S24: FeldLambdaZBez | T24: FeldLambdaZBez_V2
B25: =Langue!F339 -> www.regisol.ch | E25: =Langue!F50 -> Valeur | I25: lZ | J25: 0 | L25: 0 | M25: W/(mK) | S25: FeldLambdaZ | T25: FeldLambdaZ_V2
E26: =Langue!F51 -> Emissivité doublage | J26: Pas de doublage | L26: Pas de doublage | S26: FeldEmissionsgradUmmantelungBez | T26: FeldEmissionsgradUmmantelungBez_V2
E27: =Langue!F52 -> Valeur | I27: e | J27: 0.9 | L27: 0.9 | M27: - | S27: FeldEmissionsgradUmmantelung | T27: FeldEmissionsgradUmmantelung_V2
E28: =Langue!F53 -> Supplément surface de conduite non isolée | J28: Aucuns | L28: =FeldWBRBez -> Aucuns | S28: FeldWBRBez | T28: FeldWBRBez_V2
E29: =Langue!F54 -> Valeur | I29: wbr | J29: 0 | L29: =FeldWBR -> 0 | M29: % | S29: FeldWBR | T29: FeldWBR_V2
E30: =Langue!F55 -> Direction | I30: f | J30: Horizontal | L30: =FeldRohrAusrichtung -> Horizontal | S30: FeldRohrAusrichtung | T30: FeldRohrAusrichtung_V2
E32: =Langue!F56 -> Agent caloporteur
E33: =Langue!F57 -> Température | I33: ƟM | J33: 58 | L33: =FeldMediumstemperatur -> 58 | M33: °C | S33: FeldMediumstemperatur | T33: FeldMediumstemperatur_V2
E35: =Langue!F58 -> Environnement
E36: =Langue!F59 -> Température d'air | I36: Ɵe | J36: 12 | L36: =FeldUmgebungstemperatur -> 12 | M36: °C | S36: FeldUmgebungstemperatur | T36: FeldUmgebungstemperatur_V2
E37: =Langue!F60 -> Humidité relative | I37: fe | J37: 60 | L37: =FeldLuftFeuchte -> 60 | M37: % | S37: FeldLuftFeuchte | T37: FeldLuftFeuchte_V2
E38: =Langue!F61 -> Vitesse du vent | J38: Dedans, sans vent | L38: =FeldWindgeschwindigkeitBez -> Dedans, sans vent | S38: FeldWindgeschwindigkeitBez | T38: FeldWindgeschwindigkeitBez_V2
E39: =Langue!F62 -> Valeur vitesse vent | I39: we | J39: 0.2 | L39: =FeldWindgeschwindigkeit -> 0.2 | M39: m/s | S39: FeldWindgeschwindigkeit | T39: FeldWindgeschwindigkeit_V2
E41: =Langue!F63 -> Protection contacts fortuits (seul. Chaleur)
E42: =Langue!F64 -> Température de surface maximale admissible | I42: ƟU,G | J42: 40 | L42: =FeldBerührungsschtzTemp -> 40 | M42: °C | S42: FeldBerührungsschtzTemp | T42: FeldBerührungsschtzTemp_V2
E44: =Langue!F65 -> Barrière pare-vapeur (seulement pour la protection frigorifique)
E45: =Langue!F66 -> Appellation | J45: Aucun | L45: Aucun | S45: FeldDampfbremse | T45: FeldDampfbremse_V2
E46: =Langue!F44 -> Donnée matériau, remarques pour propres données
E47: =Langue!F67 -> Epaisseur couche d'air équivalente de diffusion | I47: sd | J47: 0 | L47: 0 | M47: m | S47: FeldSD | T47: FeldSD_V2
E48: =Langue!F68 -> Epaisseur barrière pare-vapeur | I48: dU | J48: 0 | L48: 0 | M48: mm | S48: FeldDU | T48: FeldDU_V2
E49: =Langue!F69 -> Inétanchéité barrière pare-vapeur | I49: ρU | J49: 10 | L49: 10 | M49: % | S49: FeldFD | T49: FeldFD_V2
E50: =Langue!F70 -> Valeur limite augmentation humidité en 10 ans | I50: Fli | J50: 3 | L50: 1 | M50: % | S50: FeldFli | T50: FeldFli_V2
E52: =Langue!F71 -> Economie
E53: =Langue!F72 -> Temps de fonctionnement journalier | I53: hd | J53: 24 | L53: =FeldBetriebszeitTag -> 24 | M53: h/d | S53: FeldBetriebszeitTag | T53: FeldBetriebszeitTag_V2
E54: =Langue!F73 -> Temps de fonctionnement annuel | I54: ha | J54: 12 | L54: =FeldBetriebszeitJahr -> 12 | M54: =Langue!F121 -> Mois/Année | S54: FeldBetriebszeitJahr | T54: FeldBetriebszeitJahr_V2
E55: =Langue!F74 -> Longueur conduite | I55: LR | J55: 100 | L55: =FeldLaengeRohrleitung -> 100 | M55: m | S55: FeldLaengeRohrleitung | T55: FeldLaengeRohrleitung_V2
E56: =Langue!F75 -> Source d'énergie | J56: Mazout | L56: =FeldEnergietraeger -> Mazout | S56: FeldEnergietraeger | T56: =CONCATENATE(S56,"_V2") -> FeldEnergietraeger_V2
E57: =Langue!F76 -> Rendement ou COPa installation | I57: ηE | J57: 0.85 | L57: =FeldWirkungsgrad -> 0.85 | M57: - | S57: FeldWirkungsgrad | T57: =CONCATENATE(S57,"_V2") -> FeldWirkungsgrad_V2
E58: =Langue!F77 -> Facteur spécifique de gaz à effet de serre | I58: τE | J58: 0.2952 | L58: =FeldEmissionsfaktor -> 0.2952 | M58: kg CO2/kWh | S58: FeldEmissionsfaktor | T58: =CONCATENATE(S58,"_V2") -> FeldEmissionsfaktor_V2
E59: =Langue!F78 -> Prix spécifique source d'énergie | I59: PE | J59: 100 | L59: =FeldEnergiepreis -> 100 | M59: =VLOOKUP(FeldEnergietraeger,'Autres valeurs'!A99:E104,5,) -> CHF/100 L | S59: FeldEnergiepreis | T59: =CONCATENATE(S59,"_V2") -> FeldEnergiepreis_V2
B60: =Start!B35 -> Version 3.1 | E60: =Langue!F80 -> Temps d'amortissement isolation | I60: ta | J60: 1.5 | L60: =FeldAmortisationIsolierung -> 1.5 | M60: =Langue!F275 -> Années | S60: FeldAmortisationIsolierung | T60: FeldAmortisationIsolierung_V2
B61: =Start!B36 -> DESIGN BY HSLU - T&A | E61: =Langue!F81 -> Durée d'utilisation de l'installation | I61: tn | J61: 30 | L61: =FeldNutzungszeitAnlage -> 30 | M61: =Langue!F275 -> Années | S61: FeldNutzungszeitAnlage | T61: FeldNutzungszeitAnlage_V2
E62: =Langue!F82 -> Augmentation du coût d'énergie | I62: ΔPe | J62: 1.5 | L62: =FeldEnergiepreissteigerung -> 1.5 | M62: =Langue!F276 -> %/année | S62: FeldEnergiepreissteigerung | T62: =CONCATENATE(S62,"_V2") -> FeldEnergiepreissteigerung_V2

Sheet Résultats thermiques
B2: proPIR | E2: =Start!E2 -> Outil de calcul PIR-RT2
E3: =Langue!F92 -> Résultats protection thermique
M4: =Start!N4 -> Objektname
M5: =Start!N5 -> Objektort
B6: =Langue!F320 -> swisspor AG
B7: =Langue!F321 -> Industriestrasse | J7: ='Bases techniques'!J10 -> Isolation PIR | L7: ='Bases techniques'!L10 -> Comparaison
B8: =Langue!F322 -> CH-5623 Boswil | J8: ='Bases techniques'!J11 -> Variante 1 | L8: ='Bases techniques'!L11 -> Variante 2
B9: =Langue!F323 -> Tel +41 (0) 56 678 98 98 | E9: =Langue!F93 -> Résultats partiels du calcul
B10: =Langue!F324 -> Fax +41 (0) 56 678 98 99 | E10: =Langue!F94 -> Conductibilité thermique à la température moyenne d'isolation 35 °C | I10: lB | J10: 0.03097499907 | L10: 0.03643750027 | M10: W/(mK) | O10: RWLambdaB | P10: =CONCATENATE(O10,"_V2") -> RWLambdaB_V2
B11: =Langue!F325 -> www.swisspor.ch | E11: Wärmeübergang aussen | I11: hse | J11: 8.019807816 | L11: 8.143057823 | M11: W/(m2K) | O11: RWhAussen | P11: =CONCATENATE(O11,"_V2") -> RWhAussen_V2
B12: =Langue!F326 -> 0 | E12: =Langue!F96 -> Températur de surface | I12: qU | J12: 14.45836449 | L12: 14.82415676 | M12: °C | O12: RWOberflächentemp | P12: =CONCATENATE(O12,"_V2") -> RWOberflächentemp_V2
B13: =Langue!F325 -> www.swisspor.ch | E13: =IF(OR(FeldLambdaDeklariert<>FeldLambda10,FeldLambdaDeklariert_V2<>FeldLambda10_V2),Langue!F262,"") -> 
B15: =Langue!F327 -> Elri AG | E15: =Langue!F99 -> Pertes de chaleur
B16: =Langue!F328 -> Gewerbestrasse 3 | E16: =Langue!F100 -> Résistance linéaire au passage de chaleur | I16: Rl | J16: 6.458022594 | L16: 5.536479473 | M16: m2K/(Wm) | O16: RWRWert | P16: =CONCATENATE(O16,"_V2") -> RWRWert_V2
B17: =Langue!F328 -> Gewerbestrasse 3 | E17: =Langue!F101 -> Flux de chaleur radial | I17: qrad | J17: 7.122923374 | L17: 8.3085289 | M17: W/m | O17: RWWärmestromRad | P17: =CONCATENATE(O17,"_V2") -> RWWärmestromRad_V2
B18: =Langue!F329 -> CH-4552 Derendingen | E18: =Langue!F102 -> Flux de chaleur radial (incl. ponts thermiques) | I18: qrad,wbr | J18: 7.122923374 | L18: 8.3085289 | M18: W/m | O18: RWWärmestromRadWBR | P18: =CONCATENATE(O18,"_V2") -> RWWärmestromRadWBR_V2
B19: =Langue!F330 -> Tel: +041 (0)32 681 33 11
B20: =Langue!F331 -> Fax: +041(0)32 682 15 05
B21: =Langue!F332 -> www.elri.ch | E21: =Langue!F105 -> Protection contacts fortuits
E22: =Langue!F96 -> Températur de surface | I22: qU | J22: =J12 -> 14.45836449 | L22: =L12 -> 14.82415676 | M22: °C
B23: =Langue!F334 -> Regisol AG | E23: =Langue!F107 -> Valeur limite protection contacts fortuits inférieure (40°) | J23: =IF(J22<=FeldBerührungsschtzTemp,Langue!F122,Langue!F123) -> Oui | L23: =IF(L22<=FeldBerührungsschtzTemp,Langue!F122,Langue!F123) -> Oui | M23: =Langue!F124 -> Oui/non
B24: =Langue!F335 -> Schwalbenweg 3
B25: =Langue!F336 -> CH-3292 Busswil bei Büren
B26: =Langue!F337 -> Tel: +041 (0)385 22 33 | E26: =Langue!F108 -> Epaisseur isolation selon MuKEn
B27: =Langue!F338 -> Fax: +041(0)385 22 35 | E27: =Langue!F109 -> Epaisseur isolation selon normes (λD à 10°C) | I27: dG | J27: 40 | L27: 50 | M27: mm | O27: RWDämmungNachMuKEn | P27: =CONCATENATE(O27,"_V2") -> RWDämmungNachMuKEn_V2
B28: =Langue!F339 -> www.regisol.ch | E28: =Langue!F110 -> Recommandation selon MuKEn remplies
E29: =Langue!F111 -> Les directives cantonales doivent toujours | J29: =IF(J27<=FeldDD,Langue!F122,Langue!F123) -> Oui | L29: =IF(L27<=FeldDD_V2,Langue!F122,Langue!F123) -> Non | M29: =Langue!F124 -> Oui/non
E30: =Langue!F112 -> être remplies!
E32: =Langue!F113 -> Résultats
E33: =Langue!F114 -> Pertes énergétiques annuelles | H33: =CONCATENATE("[",M33,"]") -> [kWh/a] | I33: E | J33: =IF(FeldMediumstemperatur>FeldUmgebungstemperatur,'Calcul amortissement'!C10,0) -> 6154.205795 | L33: =IF(FeldMediumstemperatur>FeldUmgebungstemperatur,'Calcul amortissement'!D10,0) -> 7178.56897 | M33: kWh/a | O33: RWEnergie | P33: =CONCATENATE(O33,"_V2") -> RWEnergie_V2
E34: =Langue!F115 -> Pertes coûts énergétiques annuelles | H34: =CONCATENATE("[",M34,"]") -> [CHF/a] | I34: K | J34: =IF(FeldMediumstemperatur>FeldUmgebungstemperatur,'Calcul amortissement'!C16,0) -> 913.2458739 | L34: =IF(FeldMediumstemperatur>FeldUmgebungstemperatur,'Calcul amortissement'!D16,0) -> 1065.255 | M34: CHF/a | O34: RWKosten | P34: =CONCATENATE(O34,"_V2") -> RWKosten_V2
E35: =Langue!F116 -> Emissions de gaz à effet de serre annuelles | H35: =CONCATENATE("[",M35,"]") -> [kg CO2/a] | I35: CO2 | J35: =IF(FeldMediumstemperatur>FeldUmgebungstemperatur,'Calcul amortissement'!C20,0) -> 2137.319471 | L35: =IF(FeldMediumstemperatur>FeldUmgebungstemperatur,'Calcul amortissement'!D20,0) -> 2493.074776 | M35: kg CO2/a | O35: RWCO2 | P35: =CONCATENATE(O35,"_V2") -> RWCO2_V2
E37: =Langue!F117 -> Economie Variante 1 par rapport à Variante 2 sur une durée d'utilisation de 30 ans
E38: =Langue!F118 -> Economie d'énergie sur une durée d'utilisation de 30 ans | I38: DE | J38: =IF(FeldMediumstemperatur>FeldUmgebungstemperatur, 'Calcul amortissement'!F10,0) -> 30730.89523 | M38: kWh | O38: RWDeltaEnergie
E39: =Langue!F119 -> Economie de coûts sur une durée d'utilisation de 30 ans | I39: DK | J39: =IF(FeldMediumstemperatur>FeldUmgebungstemperatur,'Calcul amortissement'!F16,0) -> 4332.260083 | M39: CHF | O39: RWDeltaKosten
E40: =Langue!F120 -> Economie de CO₂ sur une durée d'utilisation de 30 ans | I40: DCO2 | J40: =IF(FeldMediumstemperatur>FeldUmgebungstemperatur,'Calcul amortissement'!F20,0) -> 10672.65914 | M40: kg CO2 | O40: RWDeltaCO2
B54: =Start!B35 -> Version 3.1
B55: =Start!B36 -> DESIGN BY HSLU - T&A

Sheet Résultats frigorifiques
B2: proPIR | E2: =Start!E2 -> Outil de calcul PIR-RT2
E3: =Langue!F125 -> Résultats protection frigorifique
M4: =Start!N4 -> Objektname
M5: =Start!N5 -> Objektort
B6: =Langue!F320 -> swisspor AG
B7: =Langue!F321 -> Industriestrasse | J7: ='Bases techniques'!J10 -> Isolation PIR | L7: ='Bases techniques'!L10 -> Comparaison
B8: =Langue!F322 -> CH-5623 Boswil | J8: ='Bases techniques'!J11 -> Variante 1 | L8: ='Bases techniques'!L11 -> Variante 2
B9: =Langue!F323 -> Tel +41 (0) 56 678 98 98 | E9: =Langue!F93 -> Résultats partiels du calcul
B10: =Langue!F324 -> Fax +41 (0) 56 678 98 99 | E10: =Langue!F94 -> Conductibilité thermique à la température moyenne d'isolation 35 °C | I10: lB | J10: 0 | L10: 0 | M10: W/(mK) | P10: RKLambdaB | Q10: =CONCATENATE(P10,"_V2") -> RKLambdaB_V2
B11: =Langue!F325 -> www.swisspor.ch | E11: Wärmeübergang aussen | I11: hse | J11: 0 | L11: 0 | M11: W/(m2K) | P11: RKhAussen | Q11: =CONCATENATE(P11,"_V2") -> RKhAussen_V2
B12: =Langue!F326 -> 0 | E12: =Langue!F96 -> Températur de surface | I12: qU | J12: 0 | L12: 0 | M12: °C | P12: RKOberflächentemp | Q12: RKOberflächentemp_V2
B13: =Langue!F325 -> www.swisspor.ch | E13: =IF(OR(FeldLambdaDeklariert<>FeldLambda10,FeldLambdaDeklariert_V2<>FeldLambda10_V2),Langue!F262,"") -> 
B15: =Langue!F327 -> Elri AG | E15: =Langue!F126 -> Pertes frigorifique
B16: =Langue!F328 -> Gewerbestrasse 3 | E16: längenbezogener Wärmedurchlasswiderstand | I16: Rl | J16: 0 | L16: 0 | M16: m2K/(Wm) | P16: RKRWert | Q16: RKRWert_V2
B17: =Langue!F328 -> Gewerbestrasse 3 | E17: =Langue!F101 -> Flux de chaleur radial | I17: qrad | J17: 0 | L17: 0 | M17: W/m | P17: RKWärmestromRad | Q17: RKWärmestromRad_V2
B18: =Langue!F329 -> CH-4552 Derendingen | E18: =Langue!F102 -> Flux de chaleur radial (incl. ponts thermiques) | I18: qrad,wbr | J18: 0 | L18: 0 | M18: W/m | P18: RKWärmestromRadWBR | Q18: RKWärmestromRadWBR_V2
B19: =Langue!F330 -> Tel: +041 (0)32 681 33 11
B20: =Langue!F331 -> Fax: +041(0)32 682 15 05
B21: =Langue!F332 -> www.elri.ch | E21: =Langue!F127 -> Eau de condensation
E22: =Langue!F96 -> Températur de surface | I22: qU | J22: =J12 -> 0 | L22: =L12 -> 0 | M22: °C
B23: =Langue!F334 -> Regisol AG | E23: =Langue!F129 -> Point de rosée, température de surface min. | I23: qU,T | J23: 0 | L23: 0 | M23: °C | P23: RKOberflächentempTauwasser | Q23: RKOberflächentempTauwasser_V2
B24: =Langue!F335 -> Schwalbenweg 3 | E24: =Langue!F130 -> Formation condensation à la surface? | J24: =IF(J22<J23,Langue!F122,Langue!F123) -> Non | L24: =IF(L22<L23,Langue!F122,Langue!F123) -> Non | M24: =Langue!F124 -> Oui/non
B25: =Langue!F336 -> CH-3292 Busswil bei Büren
B26: =Langue!F337 -> Tel: +041 (0)385 22 33
B27: =Langue!F338 -> Fax: +041(0)385 22 35 | E27: =Langue!F131 -> Protection d'humidité
B28: =Langue!F339 -> www.regisol.ch | E28: =Langue!F132 -> Valeur de référence de la barrière pare-vapeur | I28: lDa | J28: 0 | L28: 0 | M28: mg/(mhPa) | P28: RKLambdaD | Q28: RKLambdaD_V2
E29: =Langue!F133 -> Valeur de référence de l'isolation | I29: lDa | J29: 0.01440000068 | L29: 0.01440000068 | M29: mg/(mhPa) | P29: RKLambdaDD | Q29: RKLambdaDD_V2
E30: =Langue!F134 -> Résistance de diffusion de vapeur | I30: rDa | J30: 0 | L30: 0 | M30: mhPa/mg | P30: RKRD | Q30: RKRD_V2
E31: =Langue!F135 -> Pression de vapeur saturée environnement | I31: ps | J31: 0 | L31: 0 | M31: Pa | P31: RKPSE | Q31: RKPSE_V2
E32: =Langue!F136 -> Différence partielle de pression | I32: p | J32: 0 | L32: 0 | M32: Pa | P32: RKP | Q32: RKP_V2
E33: =Langue!F137 -> Flux diffusion horaire | I33: dh | J33: 0 | L33: 0 | M33: mg/(mh) | P33: RKDH | Q33: RKDH_V2
E34: =Langue!F138 -> Volume couche d'isolation | I34: VD | J34: 0 | L34: 0 | M34: m3 | P34: RKVDämm | Q34: RKVDämm_V2
E35: =Langue!F139 -> Augmentation d'humidité en 10 ans (valeur limite V1: 3% et V2: 1%) | I35: F | J35: 0 | L35: 0 | M35: % | P35: RKF | Q35: RKF_V2
E37: =Langue!F113 -> Résultats
E38: =Langue!F114 -> Pertes énergétiques annuelles | H38: =CONCATENATE("[",M38,"]") -> [kWh/a] | I38: E | J38: =IF(FeldMediumstemperatur<FeldUmgebungstemperatur,'Calcul amortissement'!C10,0) -> 0 | L38: =IF(FeldMediumstemperatur<FeldUmgebungstemperatur,'Calcul amortissement'!D10,0) -> 0 | M38: kWh/a | P38: RKEnergie | Q38: RKEnergie_V2
E39: =Langue!F115 -> Pertes coûts énergétiques annuelles | H39: =CONCATENATE("[",M39,"]") -> [CHF/a] | I39: K | J39: =IF(FeldMediumstemperatur<FeldUmgebungstemperatur,'Calcul amortissement'!C16,0) -> 0 | L39: =IF(FeldMediumstemperatur<FeldUmgebungstemperatur,'Calcul amortissement'!D16,0) -> 0 | M39: CHF/a | P39: RKKosten | Q39: RKKosten_V2
E40: =Langue!F116 -> Emissions de gaz à effet de serre annuelles | H40: =CONCATENATE("[",M40,"]") -> [kg CO2/a] | I40: CO2 | J40: =IF(FeldMediumstemperatur<FeldUmgebungstemperatur,'Calcul amortissement'!C20,0) -> 0 | L40: =IF(FeldMediumstemperatur<FeldUmgebungstemperatur,'Calcul amortissement'!D20,0) -> 0 | M40: kg CO2/a | P40: RKCO2 | Q40: RKCO2_V2
E42: =Langue!F117 -> Economie Variante 1 par rapport à Variante 2 sur une durée d'utilisation de 30 ans
E43: =Langue!F118 -> Economie d'énergie sur une durée d'utilisation de 30 ans | I43: DE | J43: =IF(FeldMediumstemperatur<FeldUmgebungstemperatur,'Calcul amortissement'!F10,0) -> 0 | M43: kWh | P43: RKDeltaEnergie
E44: =Langue!F119 -> Economie de coûts sur une durée d'utilisation de 30 ans | I44: DK | J44: =IF(FeldMediumstemperatur<FeldUmgebungstemperatur,'Calcul amortissement'!F16,0) -> 0 | M44: CHF | P44: RKDeltaKosten
E45: =Langue!F120 -> Economie de CO₂ sur une durée d'utilisation de 30 ans | I45: DCO2 | J45: =IF(FeldMediumstemperatur<FeldUmgebungstemperatur,'Calcul amortissement'!F20,0) -> 0 | M45: kg CO2 | P45: RKDeltaCO2
E47: =IF(AND('Matériaux isolation'!J10="Ja",FeldUmgebungstemperatur>FeldMediumstemperatur),Langue!F249,"") -> 
B57: =Start!B35 -> Version 3.1
B58: =Start!B36 -> DESIGN BY HSLU - T&A

Sheet Instructions
B2: proPIR | E2: =Start!E2 -> Outil de calcul PIR-RT2
B3: =Start!B3 -> 0 | E3: =Langue!F140 -> Instructions
K4: =Start!N4 -> Objektname
K5: =Start!N5 -> Objektort
B6: Elri AG Gewerbestrasse 3 CH-4552 Derendingen Tel: +041 (0)32 681 33 11 Fax: +041(0)32 682 15 05
E7: =Langue!F224 -> Premiers pas
F8: =Langue!F229 -> Sur la feuille "Start" vous pouvez indiquer l'adresse de l'objet, du planificateur et du client.
B10: www.elri.ch | F10: =Langue!F230 -> Changez la feuille excel "Bases techniques" et insérer les données de base requises.
B12: Regisol AG Schwalbenweg 3 CH-3292 Busswil bei Büren Tel: +041 (0)32 385 22 33 Fax: +041(0)32 385 22 35 | F12: =Langue!F233 -> Lorsque toutes les données nécessaires sont remplies, le calcul s'effectue en appuyant sur le bouton "calculer". Selon la différence de température, la température du médium la température ambiante, le résultat s'affiche dans le domaine thermique ou frigorifique.
B16: www.regisol.ch | F16: =Langue!F235 -> Le bouton "imprimer" permet d'imprimer les feuilles "Start" et "Bases techniques" et suivant le résulat les feuilles "Résultats thermiques" ou "Résultats frigorifiques".
B18: swisspor AG Industriestrasse CH-5623 Boswil Tel +41 56 678 98 98 Fax +41 56 678 98 99
F19: =Langue!F234 -> Pour modifier des données, retournez dans la feuille "Bases techniques" etchanger la valeur désirée. Lancer le calcul à nouveau en cliquant sur le bouton "calculer".
B22: www.swisspor.ch
E23: =Langue!F225 -> Insertion des données
F25: =Langue!F231 -> Ouvrez la feuille "Bases techniques". Commencez à mettre les données de la variante 1 et puis celles de la variante 2. Une liste de choix vous aidera occasionnellement et s'ouvrira en double-cliquant sur la cellule correspondante. Ces cellules sont indiquées avec un signe rouge dans le coin et sont fournies d'un commentaire.
F31: =Langue!F232 -> Les cellules définies par des couleurs sont obligatoires et doivent être remplies et contrôlées. Jaune est associée à la variante 1 (PIR par défaut) et vert à la variante de comparaison V2. Les cellules définies en bleu dans la variante 1 sont des valeurs communes et sont reprises automatiquement dans la variante 2 où elles ne peuvent pas être modifiées. Les cellules blanches peuvent en partie être modifiées. Si une valeur prédéfinie est modifiée, le texte apparait en rouge et le curseur saute dans la cellule où il faut expliquer pourquoi la valeur a été modifiée (p.ex. autre nom de produit, autre propriété du matériau ou autre valeur limite).
F40: =Langue!F267 -> Function copier: En cliquant sur le bouton "copier V1 --> V2", toutes les données de la variante 1 sont copiées dans la variante 2. De cette manière, il est facilement possible de détérminer les effets de différentes sortes de matériaux isolants. Le bouton se situe en haut à droite à côté de la variante 2.
E45: =Langue!F226 -> Commencer le calcul
F46: =Langue!F236 -> Sur la feuille "Bases techniques", le calcul peut commencer lorsque toutes les données ont été insérées en cliquant sur le bouton "calcul".
E50: =Langue!F227 -> Autre documents - Indication pour le calcul
F52: =Langue!F280 -> Document FAQ „Outil de calcul PIR RT2“ (Questions fréquemment posées)
F54: =Langue!F282 -> Brochure "PIR - le matériau isolant thermodurcissant pour isolation de conduites "
F56: =Langue!F238 -> Les documents suivant fournissent la base pour le calcul.
F58: =Langue!F243 -> Norme SIA 380.303.1998 | H58: =Langue!F244 -> Isolation pour l'équipement du bâtiment et les installations industrielles - Règles de calculs
F60: Norm EN ISO 15758 | H60: =Langue!F245 -> Isolation pour l'équipement du bâtiment et les installations industrielles - Calculs de la diffusion de vapeur - Isolation de conduites froides
F63: =Langue!F239 -> Bases de planification Elri AG, Regisol AG, swisspor AG
G64: =Langue!F240 -> Conduites frigoriques en coquille d'isolation PIR
B65: =Start!B35 -> Version 3.1 | G65: =Langue!F241 -> Conduites thermique en coquille d'isolation PIR
B66: =Start!B36 -> DESIGN BY HSLU - T&A

Sheet Matériaux isolation (hidden)
A1: Grundlagen für die Berechnungen | H1: =VLOOKUP(FeldDämmMaterial,A4:H11,8,) -> 3 | I1: =VLOOKUP(FeldDämmMaterial,Liste_DämmMaterial,9,) -> 50
H2: =VLOOKUP(FeldDämmMaterial_V2,A4:I11,8,) -> 1 | I2: =VLOOKUP(FeldDämmMaterial_V2,Liste_DämmMaterial,9,) -> 1
A3: =Langue!F274 -> Matériaux isolants | B3: [W/(mK)] | C3: b [1/K] | D3: max. Temp. | E3: min Temp. | F3: Stärke | G3: Dimensionen | H3: Grenze max. Feuchte- zuname in 10 Jahren | I3: Wasserdampfdiffusions- widerstand u | J3: Info-Fenster Kältedämmung | K3: tiefstbekannter Lambda Wert bei | L3: höchstbekannter Lambda Wert bei
A4: =Langue!F216 -> Pas d'isolation | C4: 0 | D4: 1000 | E4: -1000 | H4: 0 | I4: 1 | J4: nein | K4: -1000 | L4: 1000 | M4: =VLOOKUP(FeldDämmMaterial,Liste_DämmMaterial,11,FALSE) -> -180 | N4: =VLOOKUP(FeldDämmMaterial,Liste_DämmMaterial,12,FALSE) -> 130
A5: =CONCATENATE(Langue!F217," (",E5,"°C bis ",D5,"°C)") -> PIR (-40°C bis 120°C) | C5: 0.0026 | D5: 120 | E5: -40 | F5: Liste_DD_Pir | G5: Liste_DiD_Pir | H5: 3 | I5: 50 | J5: nein | K5: -180 | L5: 130 | M5: =VLOOKUP(FeldDämmMaterial_V2,Liste_DämmMaterial,11,FALSE) -> 10 | N5: =VLOOKUP(FeldDämmMaterial_V2,Liste_DämmMaterial,12,FALSE) -> 350
A6: =CONCATENATE(Langue!F218," (",E6,"°C bis ",D6,"°C)") -> Laine de roche (12°C bis 750°C) | C6: 0.0029 | D6: 750 | E6: 12 | F6: Liste_DD_Rock800 | G6: Liste_DiD_Rock800 | H6: 1 | I6: 1 | J6: ja | K6: 10 | L6: 350
A7: =CONCATENATE(Langue!F219," (",E7,"°C bis ",D7,"°C)") -> Laine de verre (10°C bis 500°C) | C7: 0.0029 | D7: 500 | E7: 10 | F7: Liste_DD_VET | G7: Liste_DiD_VET | H7: 1 | I7: 1 | J7: ja | K7: 10 | L7: 300
A8: =CONCATENATE(Langue!F220," (",E8,"°C bis ",D8,"°C)") -> Caoutchouc synth. (-50°C bis 150°C) | C8: 0.0033 | D8: 150 | E8: -50 | F8: Liste_DD_Armaflex | G8: Liste_DiD_Armaflex | H8: 5 | I8: 10000 | J8: nein | K8: -50 | L8: 150
A9: =CONCATENATE(Langue!F221," (",E9,"°C bis +",D9,"°C)") -> Caoutchouc synth. sans halogen (-50°C bis +105°C) | C9: 0.0029 | D9: 105 | E9: -50 | F9: Liste_DD_Halogenfrei | G9: Liste_DiD_Halogenfrei | H9: 5 | I9: 2000 | J9: nein | K9: -50 | L9: 150
A10: =Langue!F247 -> défini par l'utilisateur v1 | D10: =VLOOKUP(FeldDämmMaterial,Liste_DämmMaterial,4,FALSE) -> 120 | E10: =VLOOKUP(FeldDämmMaterial,Liste_DämmMaterial,5,FALSE) -> -40 | H10: =VLOOKUP(FeldDämmMaterial,Liste_DämmMaterial,8,) -> 3 | I10: =VLOOKUP(FeldDämmMaterial,Liste_DämmMaterial,9,) -> 50 | J10: =VLOOKUP(FeldDämmMaterial_V2,'Matériaux isolation'!A4:J9,10,) -> ja
A11: =Langue!F248 -> défini par l'utilisateur v2 | D11: =VLOOKUP(FeldDämmMaterial_V2,Liste_DämmMaterial,4,FALSE) -> 750 | E11: =VLOOKUP(FeldDämmMaterial_V2,Liste_DämmMaterial,5,FALSE) -> 12 | H11: =VLOOKUP(FeldDämmMaterial_V2,Liste_DämmMaterial,8,) -> 1 | I11: =VLOOKUP(FeldDämmMaterial_V2,Liste_DämmMaterial,9,) -> 1 | K11: PIR | L11: MW | M11: FEF
D12: =MIN(D10:D11) -> 120 | E12: =MAX(E10:E11) -> 12 | I12: Lamda 0 | L12: 0.027 | M12: 0.032 | N12: 0.036
A13: Dämmstärken in mm | I13: b | J13: Temp.Bereich | L13: 0.0026 | M13: 0.0033 | N13: 0.0029
A14: =A5 -> PIR (-40°C bis 120°C) | B14: =A6 -> Laine de roche (12°C bis 750°C) | D14: =A7 -> Laine de verre (10°C bis 500°C) | F14: =A8 -> Caoutchouc synth. (-50°C bis 150°C) | G14: =A9 -> Caoutchouc synth. sans halogen (-50°C bis +105°C) | I14: Temp | J14: Medium | K14: -180 | L14: -170 | M14: -160 | N14: -150 | O14: -140 | P14: -130 | Q14: -120 | R14: -110 | S14: -100 | T14: -90 | U14: -80 | V14: -70 | W14: -60 | X14: -50 | Y14: -40 | Z14: -30 | AA14: -20 | AB14: -10 | AC14: 0 | AD14: 10 | AE14: 20 | AF14: 30 | AG14: 40 | AH14: 50 | AI14: 60 | AJ14: 70 | AK14: 80 | AL14: 90 | AM14: 100 | AN14: 110 | AO14: 120 | AP14: 130 | AQ14: 140 | AR14: 150 | AS14: 160 | AT14: 170 | AU14: 180 | AV14: 190 | AW14: 200 | AX14: 210 | AY14: 220 | AZ14: 230 | BA14: 240 | BB14: 250 | BC14: 260 | BD14: 270 | BE14: 280 | BF14: 290 | BG14: 300 | BH14: 310 | BI14: 320 | BJ14: 330 | BK14: 340 | BL14: 350 | BM14: 360 | BN14: 370 | BO14: 380 | BP14: 390 | BQ14: 400 | BR14: 410 | BS14: 420 | BT14: 430 | BU14: 440 | BV14: 450 | BW14: 460 | BX14: 470 | BY14: 480 | BZ14: 490 | CA14: 500 | CB14: 510 | CC14: 520 | CD14: 530 | CE14: 540 | CF14: 550 | CG14: 560 | CH14: 570 | CI14: 580 | CJ14: 590 | CK14: 600 | CL14: 610 | CM14: 620 | CN14: 630 | CO14: 640 | CP14: 650 | CQ14: 660 | CR14: 670 | CS14: 680 | CT14: 690 | CU14: 700 | CV14: 710 | CW14: 720 | CX14: 730 | CY14: 740 | CZ14: 750
A15: mm | B15: mm | D15: mm | F15: mm | G15: mm | I15: l PIR (e bt) | W15: 0.02310009814 | X15: 0.02370857663 | Y15: 0.02433308303 | Z15: 0.02497403952 | AA15: 0.0256318794 | AB15: 0.02630704742 | AC15: 0.027 | AD15: 0.02771120561 | AE15: 0.02844114505 | AF15: 0.02919031178 | AG15: 0.02995921228 | AH15: 0.03074836635 | AI15: 0.03155830748 | AJ15: 0.03238958323 | AK15: 0.03324275558 | AL15: 0.03411840129 | AM15: 0.03501711234 | AN15: 0.03593949629 | AO15: 0.03688617671 | AP15: 0.03785779359 | AQ15: 0.03885500378 | AR15: 0.03987848143 | AS15: 0.04092891846 | AT15: 0.04200702499 | AU15: 0.04311352987 | AV15: 0.04424918114 | AW15: 0.04541474654 | AX15: 0.04661101404 | AY15: 0.04783879236 | AZ15: 0.04909891152 | BA15: 0.05039222342 | BB15: 0.05171960238 | BC15: 0.05308194576 | BD15: 0.05448017456 | BE15: 0.05591523403 | BF15: 0.05738809433 | BG15: 0.05889975117
A16: 20 | B16: 20 | D16: 20 | F16: 6 | G16: 6 | I16: l STW (e bt) | W16: 0.0262518353 | X16: 0.02713259853 | Y16: 0.02804291184 | Z16: 0.02898376666 | AA16: 0.02995618766 | AB16: 0.03096123391 | AC16: 0.032 | AD16: 0.03307361726 | AE16: 0.03418325495 | AF16: 0.03533012159 | AG16: 0.03651546622 | AH16: 0.0377405798 | AI16: 0.0390067966 | AJ16: 0.04031549566 | AK16: 0.04166810228 | AL16: 0.04306608958 | AM16: 0.04451098011 | AN16: 0.0460043475 | AO16: 0.04754781816 | AP16: 0.0491430731 | AQ16: 0.0507918497 | AR16: 0.05249594365 | AS16: 0.05425721087 | AT16: 0.05607756955 | AU16: 0.05795900225 | AV16: 0.05990355803 | AW16: 0.0619133547 | AX16: 0.06399058114 | AY16: 0.06613749964 | AZ16: 0.06835644842 | BA16: 0.07064984412 | BB16: 0.07302018449 | BC16: 0.07547005106 | BD16: 0.07800211197 | BE16: 0.08061912488 | BF16: 0.08332394 | BG16: 0.08611950312
A17: 30 | B17: 30 | D17: 30 | F17: 9 | G17: 9 | I17: l STW Paroc Havac SAC | AD17: 0.034 | AE17: =$AD$17+($AH$17-$AD$17)/($AH$14-$AD$14)*(AE14-$AD$14) -> 0.03475 | AF17: =$AD$17+($AH$17-$AD$17)/($AH$14-$AD$14)*(AF14-$AD$14) -> 0.0355 | AG17: =$AD$17+($AH$17-$AD$17)/($AH$14-$AD$14)*(AG14-$AD$14) -> 0.03625 | AH17: 0.037 | AI17: =$AH$17+($AM$17-$AH$17)/($AM$14-$AH$14)*(AI14-$AH$14) -> 0.0384 | AJ17: =$AH$17+($AM$17-$AH$17)/($AM$14-$AH$14)*(AJ14-$AH$14) -> 0.0398 | AK17: =$AH$17+($AM$17-$AH$17)/($AM$14-$AH$14)*(AK14-$AH$14) -> 0.0412 | AL17: =$AH$17+($AM$17-$AH$17)/($AM$14-$AH$14)*(AL14-$AH$14) -> 0.0426 | AM17: 0.044 | AN17: =$AM$17+($AR$17-$AM$17)/($AR$14-$AM$14)*(AN14-$AM$14) -> 0.0458 | AO17: =$AM$17+($AR$17-$AM$17)/($AR$14-$AM$14)*(AO14-$AM$14) -> 0.0476 | AP17: =$AM$17+($AR$17-$AM$17)/($AR$14-$AM$14)*(AP14-$AM$14) -> 0.0494 | AQ17: =$AM$17+($AR$17-$AM$17)/($AR$14-$AM$14)*(AQ14-$AM$14) -> 0.0512 | AR17: 0.053
A18: 40 | B18: 40 | D18: 40 | F18: 13 | G18: 13 | I18: l STW Rockwool 800 | J18: -40 bis 700 | AD18: 0.0335 | AE18: =$AD$18+($AH$18-$AD$18)/($AH$14-$AD$14)*(AE14-$AD$14) -> 0.034675 | AF18: =$AD$18+($AH$18-$AD$18)/($AH$14-$AD$14)*(AF14-$AD$14) -> 0.03585 | AG18: =$AD$18+($AH$18-$AD$18)/($AH$14-$AD$14)*(AG14-$AD$14) -> 0.037025 | AH18: 0.0382 | AI18: =$AH$18+($AM$18-$AH$18)/($AM$14-$AH$14)*(AI14-$AH$14) -> 0.03952 | AJ18: =$AH$18+($AM$18-$AH$18)/($AM$14-$AH$14)*(AJ14-$AH$14) -> 0.04084 | AK18: =$AH$18+($AM$18-$AH$18)/($AM$14-$AH$14)*(AK14-$AH$14) -> 0.04216 | AL18: =$AH$18+($AM$18-$AH$18)/($AM$14-$AH$14)*(AL14-$AH$14) -> 0.04348 | AM18: 0.0448 | AN18: =$AM$18+($AR$18-$AM$18)/($AR$14-$AM$14)*(AN14-$AM$14) -> 0.0464 | AO18: =$AM$18+($AR$18-$AM$18)/($AR$14-$AM$14)*(AO14-$AM$14) -> 0.048 | AP18: =$AM$18+($AR$18-$AM$18)/($AR$14-$AM$14)*(AP14-$AM$14) -> 0.0496 | AQ18: =$AM$18+($AR$18-$AM$18)/($AR$14-$AM$14)*(AQ14-$AM$14) -> 0.0512 | AR18: 0.0528 | AS18: =$AR$18+($AW$18-$AR$18)/($AW$14-$AR$14)*(AS14-$AR$14) -> 0.05484 | AT18: =$AR$18+($AW$18-$AR$18)/($AW$14-$AR$14)*(AT14-$AR$14) -> 0.05688 | AU18: 0.05892 | AV18: 0.06096 | AW18: 0.063 | AX18: =$AW$18+($BB$18-$AW$18)/($BB$14-$AW$14)*(AX14-$AW$14) -> 0.0654 | AY18: =$AW$18+($BB$18-$AW$18)/($BB$14-$AW$14)*(AY14-$AW$14) -> 0.0678 | AZ18: 0.0702 | BA18: 0.0726 | BB18: 0.075 | BC18: =$BB$18+($BG$18-$BB$18)/($BG$14-$BB$14)*(BC14-$BB$14) -> 0.0777 | BD18: =$BB$18+($BG$18-$BB$18)/($BG$14-$BB$14)*(BD14-$BB$14) -> 0.0804 | BE18: 0.0831 | BF18: 0.0858 | BG18: 0.0885 | BH18: =$BG$18+($BL$18-$BG$18)/($BL$14-$BG$14)*(BH14-$BG$14) -> 0.0918 | BI18: =$BG$18+($BL$18-$BG$18)/($BL$14-$BG$14)*(BI14-$BG$14) -> 0.0951 | BJ18: 0.0984 | BK18: 0.1017 | BL18: 0.105
A19: 50 | B19: 50 | D19: 50 | F19: 19 | G19: 19 | I19: l Glas Sager | J19: -40 bis 500 | AD19: 0.033 | AE19: =AD19+(AG19-AD19)/(AG14-AD14)*(AE14-AD14) -> 0.03333333333 | AF19: =AD19+(AG19-AD19)/(AG14-AD14)*(AF14-AD14) -> 0.03366666667 | AG19: 0.034 | AH19: 0.036 | AI19: =$AH$19+($AM$19-$AH$19)/($AM$14-$AH$14)*(AI14-$AH$14) -> 0.0374 | AJ19: =$AH$19+($AM$19-$AH$19)/($AM$14-$AH$14)*(AJ14-$AH$14) -> 0.0388 | AK19: =$AH$19+($AM$19-$AH$19)/($AM$14-$AH$14)*(AK14-$AH$14) -> 0.0402 | AL19: =$AH$19+($AM$19-$AH$19)/($AM$14-$AH$14)*(AL14-$AH$14) -> 0.0416 | AM19: 0.043 | AN19: =$AM$19+($AR$19-$AM$19)/($AR$14-$AM$14)*(AN14-$AM$14) -> 0.0448 | AO19: =$AM$19+($AR$19-$AM$19)/($AR$14-$AM$14)*(AO14-$AM$14) -> 0.0466 | AP19: =$AM$19+($AR$19-$AM$19)/($AR$14-$AM$14)*(AP14-$AM$14) -> 0.0484 | AQ19: =$AM$19+($AR$19-$AM$19)/($AR$14-$AM$14)*(AQ14-$AM$14) -> 0.0502 | AR19: 0.052 | AS19: =$AR$19+($AW$19-$AR$19)/($AW$14-$AR$14)*(AS14-$AR$14) -> 0.0542 | AT19: =$AR$19+($AW$19-$AR$19)/($AW$14-$AR$14)*(AT14-$AR$14) -> 0.0564 | AU19: =$AR$19+($AW$19-$AR$19)/($AW$14-$AR$14)*(AU14-$AR$14) -> 0.0586 | AV19: =$AR$19+($AW$19-$AR$19)/($AW$14-$AR$14)*(AV14-$AR$14) -> 0.0608 | AW19: 0.063 | AX19: =$AW$19+($BG$19-$AW$19)/($BG$14-$AW$14)*(AX14-$AW$14) -> 0.066 | AY19: 0.069 | AZ19: 0.072 | BA19: 0.075 | BB19: 0.078 | BC19: 0.081 | BD19: 0.084 | BE19: 0.087 | BF19: 0.09 | BG19: 0.093
A20: 60 | B20: 60 | D20: 60 | F20: 25 | G20: 25 | I20: l FEF (e bt) | X20: 0.03114080255 | Y20: 0.03205710804 | Z20: 0.03300037544 | AA20: 0.03397139811 | AB20: 0.03497099272 | AC20: 0.036 | AD20: 0.0370592854 | AE20: 0.03814973985 | AF20: 0.03927228047 | AG20: 0.0404278514 | AH20: 0.04161742453 | AI20: 0.04284200037 | AJ20: 0.04410260886 | AK20: 0.04540031024 | AL20: 0.04673619596 | AM20: 0.04811138957 | AN20: 0.0495270477 | AO20: 0.05098436099 | AP20: 0.05248455514 | AQ20: 0.05402889189 | AR20: 0.05561867012 | AS20: 0.05725522694 | AT20: 0.05893993877 | AU20: 0.06067422257 | AV20: 0.06245953696 | AW20: 0.06429738351 | AX20: 0.06618930794 | AY20: 0.06813690149 | AZ20: 0.07014180218 | BA20: 0.07220569627 | BB20: 0.0743303196 | BC20: 0.07651745911 | BD20: 0.07876895431 | BE20: 0.08108669885 | BF20: 0.08347264208 | BG20: 0.08592879073
A21: 80 | B21: 80 | D21: 80 | F21: 32 | G21: 32 | I21: l FEF AF Armaflex | J21: -50 bis 150 | X21: 0.033 | Y21: 0.03328 | Z21: 0.03372 | AA21: 0.03432 | AB21: 0.03508 | AC21: 0.036 | AD21: 0.03708 | AE21: 0.03832 | AF21: 0.03972 | AG21: 0.04128 | AH21: 0.043 | AI21: 0.04488 | AJ21: 0.04692 | AK21: 0.04912 | AL21: 0.05148 | AM21: 0.054 | AN21: 0.05668 | AO21: 0.05952 | AP21: 0.06252 | AQ21: 0.06568 | AR21: 0.069
A22: 100 | B22: 100 | D22: 100 | F22: 38 | G22: 38 | I22: l FEF NH halogenfrei | J22: -50 bis 105 | X22: 0.037 | Y22: 0.03728 | Z22: 0.03772 | AA22: 0.03832 | AB22: 0.03908 | AC22: 0.04 | AD22: 0.04108 | AE22: 0.04232 | AF22: 0.04372 | AG22: 0.04528 | AH22: 0.047 | AI22: 0.04888 | AJ22: 0.05092 | AK22: 0.05312 | AL22: 0.05548 | AM22: 0.058 | AN22: 0.06068 | AO22: 0.06352 | AP22: 0.06652 | AQ22: 0.06968 | AR22: 0.073
A23: 120 | B23: 120 | D23: 120 | F23: 50 | G23: 50 | I23: l FEF XG Armaflex | Z23: 0.035 | AA23: 0.036 | AB23: =AA23+(AC23-AA23)/(AC14-AA14)*(AB14-AA14) -> 0.037 | AC23: 0.038 | AD23: 0.039 | AE23: 0.04 | AF23: =AE23+(AG23-AE23)/(AG14-AE14)*(AF14-AE14) -> 0.041 | AG23: 0.042 | AH23: =AG23+(AJ23-AG23)/(AJ14-AG14)*(AH14-AG14) -> 0.043 | AI23: =AG23+(AJ23-AG23)/(AJ14-AG14)*(AI14-AG14) -> 0.044 | AJ23: 0.045
I24: l PIR deklariert | J24: -40 bis 130 | K24: 0.0077 | L24: =$K$24+($X$24-$K$24)/($X$14-$K$14)*(L14-$K$14) -> 0.008976923077 | M24: 0.01025384615 | N24: 0.01153076923 | O24: 0.01280769231 | P24: 0.01408461538 | Q24: 0.01536153846 | R24: 0.01663846154 | S24: 0.01791538462 | T24: 0.01919230769 | U24: 0.02046923077 | V24: 0.02174615385 | W24: =$K$24+($X$24-$K$24)/($X$14-$K$14)*(W14-$K$14) -> 0.02302307692 | X24: 0.0243 | Y24: =X24+(Z24-X24)/(Z14-X14)*(Y14-X14) -> 0.02625 | Z24: 0.0282 | AA24: =$Z$24+($AC$24-$Z$24)/($AC$14-$Z$14)*(AA14-$Z$14) -> 0.02763333333 | AB24: =$Z$24+($AC$24-$Z$24)/($AC$14-$Z$14)*(AB14-$Z$14) -> 0.02706666667 | AC24: 0.0265 | AD24: =AC24+(AF24-AC24)/(AF14-AC14)*(AD14-AC14) -> 0.0277 | AE24: =AC24+(AF24-AC24)/(AF14-AC14)*(AE14-AC14) -> 0.0289 | AF24: 0.0301 | AG24: =AF24+(AH24-AF24)/(AH14-AF14)*(AG14-AF14) -> 0.03185 | AH24: 0.0336 | AI24: =AH24+(AJ24-AH24)/(AJ14-AH14)*(AI14-AH14) -> 0.0348 | AJ24: 0.036 | AK24: =AJ24+(AM24-AJ24)/(AM14-AJ14)*(AK14-AJ14) -> 0.03733333333 | AL24: =AJ24+(AM24-AJ24)/(AM14-AJ14)*(AL14-AJ14) -> 0.03866666667 | AM24: 0.04 | AN24: =AM24+(AP24-AM24)/(AP14-AM14)*(AN14-AM14) -> 0.04133333333 | AO24: =AM24+(AP24-AM24)/(AP14-AM14)*(AO14-AM14) -> 0.04266666667 | AP24: 0.044
A27: Dimensionen der Dämmungen in mm
A28: =A5 -> PIR (-40°C bis 120°C) | B28: =A6 -> Laine de roche (12°C bis 750°C) | D28: =A7 -> Laine de verre (10°C bis 500°C) | F28: =A8 -> Caoutchouc synth. (-50°C bis 150°C) | G28: =A9 -> Caoutchouc synth. sans halogen (-50°C bis +105°C) | K28: -180 | L28: -170 | M28: -160 | N28: -150 | O28: -140 | P28: -130 | Q28: -120 | R28: -110 | S28: -100 | T28: -90 | U28: -80 | V28: -70 | W28: -60 | X28: -50 | Y28: -40 | Z28: -30 | AA28: -20 | AB28: -10 | AC28: 0 | AD28: 10 | AE28: 20 | AF28: 30 | AG28: 40 | AH28: 50 | AI28: 60 | AJ28: 70 | AK28: 80 | AL28: 90 | AM28: 100 | AN28: 110 | AO28: 120 | AP28: 130 | AQ28: 140 | AR28: 150 | AS28: 160 | AT28: 170 | AU28: 180 | AV28: 190 | AW28: 200 | AX28: 210 | AY28: 220 | AZ28: 230 | BA28: 240 | BB28: 250 | BC28: 260 | BD28: 270 | BE28: 280 | BF28: 290 | BG28: 300 | BH28: 310 | BI28: 320 | BJ28: 330 | BK28: 340 | BL28: 350 | BM28: 360 | BN28: 370 | BO28: 380 | BP28: 390 | BQ28: 400 | BR28: 410 | BS28: 420 | BT28: 430 | BU28: 440 | BV28: 450 | BW28: 460 | BX28: 470 | BY28: 480 | BZ28: 490 | CA28: 500 | CB28: 510 | CC28: 520 | CD28: 530 | CE28: 540 | CF28: 550 | CG28: 560 | CH28: 570 | CI28: 580 | CJ28: 590 | CK28: 600 | CL28: 610 | CM28: 620 | CN28: 630 | CO28: 640 | CP28: 650 | CQ28: 660 | CR28: 670 | CS28: 680 | CT28: 690 | CU28: 700 | CV28: 710 | CW28: 720 | CX28: 730 | CY28: 740 | CZ28: 750
A29: =Langue!F273 -> Mesure interne (mm) | B29: =Langue!F273 -> Mesure interne (mm) | D29: =Langue!F273 -> Mesure interne (mm) | F29: =Langue!F273 -> Mesure interne (mm) | G29: =Langue!F273 -> Mesure interne (mm) | K29: 1 | L29: 2 | M29: 3 | N29: 4 | O29: 5 | P29: 6 | Q29: 7 | R29: 8 | S29: 9 | T29: 10 | U29: 11 | V29: 12 | W29: 13 | X29: 14 | Y29: 15 | Z29: 16 | AA29: 17 | AB29: 18 | AC29: 19 | AD29: 20 | AE29: 21 | AF29: 22 | AG29: 23 | AH29: 24 | AI29: 25 | AJ29: 26 | AK29: 27 | AL29: 28 | AM29: 29 | AN29: 30 | AO29: 31 | AP29: 32 | AQ29: 33 | AR29: 34 | AS29: 35 | AT29: 36 | AU29: 37 | AV29: 38 | AW29: 39 | AX29: 40 | AY29: 41 | AZ29: 42 | BA29: 43 | BB29: 44 | BC29: 45 | BD29: 46 | BE29: 47 | BF29: 48 | BG29: 49 | BH29: 50 | BI29: 51 | BJ29: 52 | BK29: 53 | BL29: 54 | BM29: 55 | BN29: 56 | BO29: 57 | BP29: 58 | BQ29: 59 | BR29: 60 | BS29: 61 | BT29: 62 | BU29: 63 | BV29: 64 | BW29: 65 | BX29: 66 | BY29: 67 | BZ29: 68 | CA29: 69 | CB29: 70 | CC29: 71 | CD29: 72 | CE29: 73 | CF29: 74 | CG29: 75 | CH29: 76 | CI29: 77 | CJ29: 78 | CK29: 79 | CL29: 80 | CM29: 81 | CN29: 82 | CO29: 83 | CP29: 84 | CQ29: 85 | CR29: 86 | CS29: 87 | CT29: 88 | CU29: 89 | CV29: 90 | CW29: 91 | CX29: 92 | CY29: 93 | CZ29: 94
A30: 12 | B30: 18 | D30: 18 | F30: 6 | G30: 6 | I30: =A4 -> Pas d'isolation | J30: 1 | K30: 0 | L30: 0 | M30: 0 | N30: 0 | O30: 0 | P30: 0 | Q30: 0 | R30: 0 | S30: 0 | T30: 0 | U30: 0 | V30: 0 | W30: 0 | X30: 0 | Y30: 0 | Z30: 0 | AA30: 0 | AB30: 0 | AC30: 0 | AD30: 0 | AE30: 0 | AF30: 0 | AG30: 0 | AH30: 0 | AI30: 0 | AJ30: 0 | AK30: 0 | AL30: 0 | AM30: 0 | AN30: 0 | AO30: 0 | AP30: 0 | AQ30: 0 | AR30: 0 | AS30: 0 | AT30: 0 | AU30: 0 | AV30: 0 | AW30: 0 | AX30: 0 | AY30: 0 | AZ30: 0 | BA30: 0 | BB30: 0 | BC30: 0 | BD30: 0 | BE30: 0 | BF30: 0 | BG30: 0 | BH30: 0 | BI30: 0 | BJ30: 0 | BK30: 0 | BL30: 0 | BM30: 0 | BN30: 0 | BO30: 0 | BP30: 0 | BQ30: 0 | BR30: 0 | BS30: 0 | BT30: 0 | BU30: 0 | BV30: 0 | BW30: 0 | BX30: 0 | BY30: 0 | CA30: 0 | CB30: 0 | CC30: 0 | CD30: 0 | CE30: 0 | CF30: 0 | CG30: 0 | CH30: 0 | CI30: 0 | CJ30: 0 | CK30: 0 | CL30: 0 | CM30: 0 | CN30: 0 | CO30: 0 | CP30: 0 | CQ30: 0 | CR30: 0 | CS30: 0 | CT30: 0 | CU30: 0 | CV30: 0 | CW30: 0 | CX30: 0 | CY30: 0 | CZ30: 0
A31: 15 | B31: 22 | D31: 22 | F31: 8 | G31: 8 | I31: PIR (-40°C bis 120°C) | J31: 2 | K31: =K24 -> 0.0077 | L31: 0.008976923077 | M31: 0.01025384615 | N31: 0.01153076923 | O31: 0.01280769231 | P31: 0.01408461538 | Q31: 0.01536153846 | R31: 0.01663846154 | S31: 0.01791538462 | T31: 0.01919230769 | U31: 0.02046923077 | V31: 0.02174615385 | W31: 0.02302307692 | X31: 0.0243 | Y31: =Y24 -> 0.02625 | Z31: 0.0282 | AA31: 0.02763333333 | AB31: 0.02706666667 | AC31: 0.0265 | AD31: 0.0277 | AE31: 0.0289 | AF31: 0.0301 | AG31: 0.03185 | AH31: 0.0336 | AI31: 0.0348 | AJ31: 0.036 | AK31: 0.03733333333 | AL31: 0.03866666667 | AM31: 0.04 | AN31: 0.04133333333 | AO31: 0.04266666667 | AP31: 0.044
A32: 18 | B32: 24 | D32: 24 | F32: 10 | G32: 10 | I32: Laine de roche (12°C bis 750°C) | J32: 3 | AD32: =AD18 -> 0.0335 | AE32: 0.034675 | AF32: 0.03585 | AG32: 0.037025 | AH32: 0.0382 | AI32: 0.03952 | AJ32: 0.04084 | AK32: 0.04216 | AL32: 0.04348 | AM32: 0.0448 | AN32: 0.0464 | AO32: 0.048 | AP32: 0.0496 | AQ32: 0.0512 | AR32: 0.0528 | AS32: 0.05484 | AT32: 0.05688 | AU32: 0.05892 | AV32: 0.06096 | AW32: 0.063 | AX32: 0.0654 | AY32: 0.0678 | AZ32: 0.0702 | BA32: 0.0726 | BB32: 0.075 | BC32: 0.0777 | BD32: 0.0804 | BE32: 0.0831 | BF32: 0.0858 | BG32: 0.0885 | BH32: 0.0918 | BI32: 0.0951 | BJ32: 0.0984 | BK32: 0.1017 | BL32: 0.105
A33: 22 | B33: 25 | D33: 25 | F33: 12 | G33: 12 | I33: Laine de verre (10°C bis 500°C) | J33: 4 | AD33: =AD19 -> 0.033 | AE33: 0.03333333333 | AF33: 0.03366666667 | AG33: 0.034 | AH33: 0.036 | AI33: 0.0374 | AJ33: 0.0388 | AK33: 0.0402 | AL33: 0.0416 | AM33: 0.043 | AN33: 0.0448 | AO33: 0.0466 | AP33: 0.0484 | AQ33: 0.0502 | AR33: 0.052 | AS33: =AS19 -> 0.0542 | AT33: 0.0564 | AU33: 0.0586 | AV33: 0.0608 | AW33: 0.063 | AX33: 0.066 | AY33: 0.069 | AZ33: 0.072 | BA33: 0.075 | BB33: 0.078 | BC33: 0.081 | BD33: 0.084 | BE33: 0.087 | BF33: 0.09 | BG33: 0.093 | BH33: 0 | BI33: 0 | BJ33: 0 | BK33: 0 | BL33: 0 | BM33: 0 | BN33: 0 | BO33: 0 | BP33: 0 | BQ33: 0 | BR33: 0 | BS33: 0 | BT33: 0 | BU33: 0 | BV33: 0 | BW33: 0 | BX33: 0 | BY33: =BY19 -> 0 | BZ33: 0 | CA33: 0 | CB33: 0 | CC33: 0 | CD33: 0 | CE33: 0 | CF33: 0 | CG33: 0 | CH33: 0 | CI33: 0 | CJ33: 0 | CK33: 0 | CL33: 0 | CM33: 0 | CN33: 0 | CO33: 0 | CP33: 0 | CQ33: 0 | CR33: 0 | CS33: 0 | CT33: 0 | CU33: 0 | CV33: 0 | CW33: 0 | CX33: 0 | CY33: 0 | CZ33: 0
A34: 24 | B34: 28 | D34: 28 | F34: 15 | G34: 15 | I34: Caoutchouc synth. (-50°C bis 150°C) | J34: 5 | X34: =X21 -> 0.033 | Y34: 0.03328 | Z34: 0.03372 | AA34: 0.03432 | AB34: 0.03508 | AC34: 0.036 | AD34: 0.03708 | AE34: 0.03832 | AF34: 0.03972 | AG34: 0.04128 | AH34: 0.043 | AI34: 0.04488 | AJ34: 0.04692 | AK34: 0.04912 | AL34: 0.05148 | AM34: 0.054 | AN34: 0.05668 | AO34: 0.05952 | AP34: 0.06252 | AQ34: 0.06568 | AR34: 0.069
A35: 25 | B35: 30 | D35: 30 | F35: 18 | G35: 18 | I35: Caoutchouc synth. sans halogen (-50°C bis +105°C) | J35: 6 | X35: =X22 -> 0.037 | Y35: 0.03728 | Z35: 0.03772 | AA35: 0.03832 | AB35: 0.03908 | AC35: 0.04 | AD35: 0.04108 | AE35: 0.04232 | AF35: 0.04372 | AG35: 0.04528 | AH35: 0.047 | AI35: 0.04888 | AJ35: 0.05092 | AK35: 0.05312 | AL35: 0.05548 | AM35: 0.058 | AN35: 0.06068 | AO35: 0.06352 | AP35: 0.06652 | AQ35: 0.06968 | AR35: 0.073
A36: 28 | B36: 33 | D36: 33 | F36: 22 | G36: 22 | I36: =A10 -> défini par l'utilisateur v1 | J36: 7 | K36: =FeldLambdaDeklariert -> 0.0277 | L36: 0.0277 | M36: 0.0277 | N36: 0.0277 | O36: 0.0277 | P36: 0.0277 | Q36: 0.0277 | R36: 0.0277 | S36: 0.0277 | T36: 0.0277 | U36: 0.0277 | V36: 0.0277 | W36: 0.0277 | X36: =FeldLambdaDeklariert -> 0.0277 | Y36: =FeldLambdaDeklariert -> 0.0277 | Z36: 0.0277 | AA36: 0.0277 | AB36: 0.0277 | AC36: 0.0277 | AD36: 0.0277 | AE36: 0.0277 | AF36: 0.0277 | AG36: 0.0277 | AH36: 0.0277 | AI36: 0.0277 | AJ36: 0.0277 | AK36: 0.0277 | AL36: 0.0277 | AM36: 0.0277 | AN36: 0.0277 | AO36: 0.0277 | AP36: 0.0277 | AQ36: 0.0277 | AR36: 0.0277 | AS36: 0.0277 | AT36: 0.0277 | AU36: 0.0277 | AV36: 0.0277 | AW36: 0.0277 | AX36: 0.0277 | AY36: 0.0277 | AZ36: 0.0277 | BA36: 0.0277 | BB36: 0.0277 | BC36: 0.0277 | BD36: 0.0277 | BE36: 0.0277 | BF36: 0.0277 | BG36: 0.0277 | BH36: 0.0277 | BI36: 0.0277 | BJ36: 0.0277 | BK36: 0.0277 | BL36: 0.0277 | BM36: 0.0277 | BN36: 0.0277 | BO36: 0.0277 | BP36: 0.0277 | BQ36: 0.0277 | BR36: 0.0277 | BS36: 0.0277 | BT36: 0.0277 | BU36: 0.0277 | BV36: 0.0277 | BW36: 0.0277 | BX36: 0.0277 | BY36: 0.0277 | BZ36: 0.0277 | CA36: 0.0277 | CB36: 0.0277 | CC36: 0.0277 | CD36: 0.0277 | CE36: 0.0277 | CF36: 0.0277 | CG36: 0.0277 | CH36: 0.0277 | CI36: 0.0277 | CJ36: =FeldLambdaDeklariert -> 0.0277 | CK36: 0.0277 | CL36: 0.0277 | CM36: 0.0277 | CN36: 0.0277 | CO36: 0.0277 | CP36: 0.0277 | CQ36: 0.0277 | CR36: 0.0277 | CS36: 0.0277 | CT36: 0.0277 | CU36: 0.0277 | CV36: 0.0277 | CW36: 0.0277 | CX36: 0.0277 | CY36: 0.0277 | CZ36: 0.0277
A37: 30 | B37: 35 | D37: 35 | F37: 25 | G37: 25 | I37: =A11 -> défini par l'utilisateur v2 | J37: 8 | K37: =FeldLambdaDeklariert_V2 -> 0.0335 | L37: 0.0335 | M37: 0.0335 | N37: 0.0335 | O37: 0.0335 | P37: 0.0335 | Q37: 0.0335 | R37: 0.0335 | S37: 0.0335 | T37: 0.0335 | U37: 0.0335 | V37: 0.0335 | W37: 0.0335 | X37: =FeldLambdaDeklariert_V2 -> 0.0335 | Y37: 0.0335 | Z37: 0.0335 | AA37: 0.0335 | AB37: 0.0335 | AC37: 0.0335 | AD37: 0.0335 | AE37: 0.0335 | AF37: 0.0335 | AG37: 0.0335 | AH37: 0.0335 | AI37: 0.0335 | AJ37: 0.0335 | AK37: 0.0335 | AL37: 0.0335 | AM37: 0.0335 | AN37: 0.0335 | AO37: 0.0335 | AP37: 0.0335 | AQ37: 0.0335 | AR37: 0.0335 | AS37: 0.0335 | AT37: 0.0335 | AU37: 0.0335 | AV37: 0.0335 | AW37: 0.0335 | AX37: 0.0335 | AY37: 0.0335 | AZ37: 0.0335 | BA37: 0.0335 | BB37: 0.0335 | BC37: 0.0335 | BD37: 0.0335 | BE37: 0.0335 | BF37: 0.0335 | BG37: 0.0335 | BH37: 0.0335 | BI37: 0.0335 | BJ37: 0.0335 | BK37: 0.0335 | BL37: 0.0335 | BM37: 0.0335 | BN37: 0.0335 | BO37: 0.0335 | BP37: 0.0335 | BQ37: 0.0335 | BR37: 0.0335 | BS37: 0.0335 | BT37: 0.0335 | BU37: 0.0335 | BV37: 0.0335 | BW37: 0.0335 | BX37: 0.0335 | BY37: 0.0335 | BZ37: 0.0335 | CA37: 0.0335 | CB37: 0.0335 | CC37: 0.0335 | CD37: 0.0335 | CE37: 0.0335 | CF37: 0.0335 | CG37: 0.0335 | CH37: 0.0335 | CI37: 0.0335 | CJ37: =FeldLambdaDeklariert_V2 -> 0.0335 | CK37: 0.0335 | CL37: 0.0335 | CM37: 0.0335 | CN37: 0.0335 | CO37: 0.0335 | CP37: 0.0335 | CQ37: 0.0335 | CR37: 0.0335 | CS37: 0.0335 | CT37: 0.0335 | CU37: 0.0335 | CV37: 0.0335 | CW37: 0.0335 | CX37: 0.0335 | CY37: 0.0335 | CZ37: 0.0335
A38: 33 | B38: 38 | D38: 38 | F38: 28 | G38: 28 | J38: Variante 1 REGOPIRGREEN
A39: 35 | B39: 40 | D39: 40 | F39: 30 | G39: 30 | I39: Mediumstemperatur | J39: =FeldMediumstemperatur -> 58
A40: 38 | B40: 42 | D40: 42 | F40: 35 | G40: 35 | I40: Umgebungstemperatur | J40: =FeldUmgebungstemperatur -> 12
A41: 40 | B41: 44 | D41: 44 | F41: 38 | G41: 38 | I41: Mitteltemperatur | K41: =(FeldMediumstemperatur+FeldUmgebungstemperatur)/2 -> 35
A42: 42 | B42: 48 | D42: 48 | F42: 42 | G42: 42 | I42: Temperatur Referenz | J42: =ROUND(J39-5,-1) -> 50 | K42: =ROUND(K41-5,-1) -> 30
A43: 44 | B43: 52 | D43: 52 | F43: 54 | G43: 54 | I43: Kategorie Spalte | J43: =HLOOKUP(J42,K28:CZ29,2,TRUE) -> 24 | K43: =HLOOKUP(K42,K28:CZ29,2,TRUE) -> 22
A44: 48 | B44: 54 | D44: 54 | F44: 57 | G44: 57 | I44: Dämmung | J44: =FeldDämmMaterial -> PIR (-40°C bis 120°C)
A45: 52 | B45: 57 | D45: 57 | F45: 64 | G45: 64 | I45: Kategorie Zeile | J45: =VLOOKUP(J44,I30:J37,2,) -> 2 | K45: =VLOOKUP(J44,I30:J37,2,) -> 2
A46: 54 | B46: 60 | D46: 60 | F46: 70 | G46: 70 | I46: Lambda_Wert | J46: =INDEX(Matrix_LambdaD,J45,J43) -> 0.0336 | K46: =INDEX(Matrix_LambdaD,K45,K43) -> 0.0301
A47: 57 | B47: 64 | D47: 64 | F47: 76 | G47: 76 | I47: Lambda_Wert +10 | J47: =INDEX(Matrix_LambdaD,J45,J43+1) -> 0.0348 | K47: =INDEX(Matrix_LambdaD,K45,K43+1) -> 0.03185
A48: 60 | B48: 70 | D48: 70 | F48: 80 | G48: 80 | I48: Lambda_Real | J48: =J46+(J47-J46)/10*(J39-J42) -> 0.03456 | K48: =K46+(K47-K46)/10*(K41-K42) -> 0.030975
A49: 64 | B49: 76 | D49: 76 | F49: 89 | G49: 89 | I49: Lambda20 | J49: =INDEX(Matrix_LambdaD,J45,21) -> 0.0289
A50: 70 | B50: 83 | D50: 83 | F50: 108 | G50: 108 | I50: Lambda10 | J50: =INDEX(Matrix_LambdaD,J45,20) -> 0.0277
A51: 76 | B51: 89 | D51: 89 | F51: 114 | G51: 114 | J51: Variante 2
A52: 83 | B52: 90 | D52: 90 | F52: 133 | G52: 133 | I52: Mediumstemperatur | J52: =FeldMediumstemperatur_V2 -> 58
A53: 89 | B53: 95 | D53: 95 | F53: 159 | G53: 159 | I53: Umgebungstemperatur | J53: =FeldUmgebungstemperatur_V2 -> 12
A54: 90 | B54: 102 | D54: 102 | I54: Mitteltemperatur | K54: =(FeldMediumstemperatur_V2+FeldUmgebungstemperatur_V2)/2 -> 35
A55: 95 | B55: 108 | D55: 108 | I55: Temperatur Referenz | J55: =ROUND(J52-5,-1) -> 50 | K55: =ROUND(K54-5,-1) -> 30
A56: 102 | B56: 110 | D56: 110 | I56: Kategorie Spalte | J56: =HLOOKUP(J55,K28:BG29,2,TRUE) -> 24 | K56: =HLOOKUP(K55,K28:BG29,2,TRUE) -> 22
A57: 108 | B57: 114 | D57: 114 | I57: Dämmung | J57: =FeldDämmMaterial_V2 -> Laine de roche (12°C bis 750°C)
A58: 110 | B58: 117 | D58: 117 | I58: Kategorie Zeile | J58: =VLOOKUP(J57,I30:J37,2,) -> 3 | K58: =VLOOKUP(J57,I30:J37,2,) -> 3
A59: 114 | B59: 121 | D59: 121 | I59: Lambda_Wert | J59: =INDEX(Matrix_LambdaD,J58,J56) -> 0.0382 | K59: =INDEX(Matrix_LambdaD,K58,K56) -> 0.03585
A60: 117 | B60: 127 | D60: 127 | I60: Lambda_Wert +10 | J60: =INDEX(Matrix_LambdaD,J58,J56+1) -> 0.03952 | K60: =INDEX(Matrix_LambdaD,K58,K56+1) -> 0.037025
A61: 121 | B61: 133 | D61: 133 | I61: Lambda_Real_V2 | J61: =J59+(J60-J59)/10*(J52-J55) -> 0.039256 | K61: =K59+(K60-K59)/10*(K54-K55) -> 0.0364375
A62: 127 | B62: 136 | D62: 136 | I62: Lambda20_V2 | J62: =INDEX(Matrix_LambdaD,J58,21) -> 0.034675
A63: 133 | B63: 140 | D63: 140 | I63: Lambda10_V2 | J63: =INDEX(Matrix_LambdaD,J58,20) -> 0.0335
A64: 136 | B64: 144 | D64: 144
A65: 140 | B65: 152 | D65: 152
A66: 144 | B66: 159 | D66: 159
A67: 152 | D67: 160
A68: 159 | D68: 168
A69: 160 | D69: 219
A70: 168 | D70: 273
A71: 219
A72: 273
A73: 324

Sheet Autres valeurs (hidden)
A1: Grundlagen für die Berechnungen
A4: Rohrmaterialen
A6: =Langue!F141 -> Matériaux | B6: Lambda W/(mK) | C6: =Langue!F147 -> Epaisseur paroi [mm] | D6: =Langue!F263 -> Emissivité [-] | H6: Lambda | I6: Wandstärke
A7: =Langue!F143 -> Acier | B7: 50 | C7: 3 | D7: 0.35
A8: =Langue!F144 -> Acier CrNi, acier précieux, inox | B8: 17 | C8: 1.5 | D8: 0.35
A9: =Langue!F145 -> Cu (Cuivre) | B9: 380 | C9: 1.5 | D9: 0.6
A10: =Langue!F146 -> Plastique | B10: 0.25 | C10: 3 | D10: 0.9
B12: =VLOOKUP(FeldRohrMaterial,Liste_Rohrmaterial,2,FALSE) -> 50 | C12: =VLOOKUP(FeldRohrMaterial,Liste_Rohrmaterial,3,FALSE) -> 3 | D12: =VLOOKUP(FeldRohrMaterial,Liste_Rohrmaterial,4,FALSE) -> 0.35
B13: =VLOOKUP(FeldRohrMaterial_V2,Liste_Rohrmaterial,2,FALSE) -> 50 | C13: =VLOOKUP(FeldRohrMaterial_V2,Liste_Rohrmaterial,3,FALSE) -> 3 | D13: =VLOOKUP(FeldRohrMaterial_V2,Liste_Rohrmaterial,4,FALSE) -> 0.35
A16: Rohrausrichtung
A18: =Langue!F148 -> Type
A19: =Langue!F149 -> Horizontal
A20: =Langue!F150 -> Vertical
A23: Windgeschwindigkeiten
A25: =Langue!F151 -> Appellation | B25: m/s
A26: =Langue!F152 -> Dedans, sans vent | B26: 0.2
A27: =Langue!F153 -> Dehors, couvert, petite brise | B27: 2
A28: =Langue!F154 -> Dehors, ouvert, vent faible | B28: 5
A29: =Langue!F155 -> Dehors, ouvert, vent frais | B29: 10
B30: =VLOOKUP(FeldWindgeschwindigkeitBez,Liste_Windgeschwindigkeit,2,FALSE) -> 0.2
B31: =VLOOKUP(FeldWindgeschwindigkeitBez_V2,Liste_Windgeschwindigkeit,2,FALSE) -> 0.2
A32: Zuschlag Unterkonstruktion
A34: =Langue!F156 -> Type d'appuis | B34: =Langue!F161 -> Supplément [W/(mK)]
A35: =Langue!F157 -> Aucun appui | B35: 0
A36: =Langue!F158 -> … en matériaux isolants | B36: 0.003
A37: =Langue!F159 -> … en acier, isolé | B37: 0.006
A38: =Langue!F160 -> … en acier, non isolé | B38: 0.02
B39: =VLOOKUP(FeldLambdaZBez,Liste_Unterkonstruktion,2,FALSE) -> 0
B40: =VLOOKUP(FeldLambdaZBez_V2,Liste_Unterkonstruktion,2,FALSE) -> 0
A43: Emissionsgrade von Oberflächen
A45: Stand 2009 | H45: Definitiv
A46: =Langue!F162 -> Type de surface | B46: e (-) | H46: =Langue!F162 -> Type de surface | I46: e (-)
A47: =Langue!F163 -> Pas de doublage | B47: 0.9 | H47: =Langue!F250 -> Pas de doublage | I47: 0.9
A48: =Langue!F164 -> Tôle d'aluminium anodisée | B48: 0.8 | H48: =Langue!F251 -> PVC | I48: 0.9
A49: =Langue!F165 -> Tôle d'aluminium oxydée | B49: 0.15 | H49: =Langue!F252 -> ALU-PET | I49: 0.35
A50: =Langue!F166 -> Tôle d'aluminium très oxydée | B50: 0.2 | H50: =Langue!F253 -> feuille d'alu avec grain | I50: 0.35
A51: =Langue!F167 -> Tôle d'aluminium laminée brute | B51: 0.05 | H51: =Langue!F254 -> Tôle d'acier CrNi inoxydable | I51: 0.15
A52: =Langue!F168 -> Protection contre les contacts fortuits métalliques | B52: 0.15 | H52: =Langue!F255 -> Tôle d'aluminium laminée brute | I52: 0.05
A53: =Langue!F169 -> Protection contre les contacts fortuits non métalliques | B53: 0.9 | H53: =Langue!F256 -> Tôle d'acier rouillée | I53: 0.6
A54: =Langue!F170 -> Tôle d'acier CrNi inoxydable | B54: 0.15 | H54: =Langue!F257 -> Tôle d'acier galvanisé | I54: 0.3
A55: =Langue!F171 -> Tôle d'acier enduite | B55: 0.9 | H55: =Langue!F258 -> Tôle d'acier enduite | I55: 0.9
A56: =Langue!F172 -> Tôle d'acier rouillée | B56: 0.6 | H56: =Langue!F259 -> Tôle d'acier avec enduit anticorrosion | I56: 0.9
A57: =Langue!F173 -> Tôle d'acier très rouillée | B57: 0.7 | H57: =Langue!F260 -> Métallique (propre) | I57: 0.15
A58: =Langue!F174 -> Tôle d'acier galvanisé brute | B58: 0.25 | H58: =Langue!F261 -> Métallique (poussiéreux) | I58: 0.35
A59: =Langue!F175 -> Tôle d'acier galvanisé poussiéreux | B59: 0.35 | I59: =VLOOKUP(FeldEmissionsgradUmmantelungBez,Liste_EmissionsgradOberfläche,2,FALSE) -> 0.9
A60: =Langue!F176 -> Doublage métallique neuf | B60: 0.15 | I60: =VLOOKUP(FeldEmissionsgradUmmantelungBez_V2,Liste_EmissionsgradOberfläche,2,FALSE) -> 0.9
A61: =Langue!F177 -> Doublage non métalique (p.e. PVC) | B61: 0.9
A62: =Langue!F178 -> Doublage métallique ayant déjà servi (poussiéreux) | B62: 0.35
A63: =Langue!F179 -> Doublage non métalique (limiter pertes chaleur) | B63: 0.9
A67: Zuschlag ungedämmte Rohroberfläche
A69: =Langue!F180 -> Ponts thermiques | B69: =Langue!F185 -> Supplément [%]
A70: =Langue!F181 -> Aucuns | B70: 0
A71: =Langue!F182 -> Peu | B71: 0.2
A72: =Langue!F183 -> Normal | B72: 1
A73: =Langue!F184 -> Beaucoup | B73: 5
B74: =VLOOKUP(FeldWBRBez,Liste_WBR,2,FALSE) -> 0
B75: =VLOOKUP(FeldWBRBez_V2,Liste_WBR,2,FALSE) -> 0
A78: Diffusionsäquivalente Luftschichtdicken
A80: =Langue!F186 -> Matériau | B80: =Langue!F199 -> Epaisseur L équivalente [m] | C80: =Langue!F200 -> Epaisseur [mm]
A81: =Langue!F187 -> Aucun | B81: 0 | C81: 0
A82: =Langue!F198 -> PIR ALU-Pet - Feuille | B82: 1500 | C82: 0.05
A83: =Langue!F193 -> Feuille ALU 0.1 mm jonctions collées | B83: 400 | C83: 0.1
A84: =Langue!F192 -> Rubans adésifs ALU 0.05 mm | B84: 100 | C84: 0.05
A85: =Langue!F191 -> Rubans adésifs PE 0.4 mm | B85: 10 | C85: 0.4
A86: =Langue!F194 -> Doublage tôle. joints etc. non imperméablilisés | B86: 5 | C86: 1
A87: =Langue!F195 -> Doublage tôle. joints etc. imperméablilisés | B87: 10 | C87: 1
A88: =Langue!F196 -> Plastiques liquides, sèche (50;2) | B88: 50 | C88: 2
A89: =Langue!F197 -> Plastiques liquides, sèche (20;1) | B89: 20 | C89: 1
A90: =Langue!F188 -> Couche bitumée, sèche (10;1) | B90: 10 | C90: 1
A91: =Langue!F189 -> Couche bitumée, sèche (50;2) | B91: 50 | C91: 2
A92: =Langue!F190 -> Couche bitumée, sèche (100;3) | B92: 100 | C92: 3
B93: =VLOOKUP(FeldDampfbremse,Liste_Dampfbremse,2,FALSE) -> 0 | C93: =VLOOKUP(FeldDampfbremse,Liste_Dampfbremse,3,FALSE) -> 0
B94: =VLOOKUP(FeldDampfbremse_V2,Liste_Dampfbremse,2,FALSE) -> 0 | C94: =VLOOKUP(FeldDampfbremse_V2,Liste_Dampfbremse,3,FALSE) -> 0
A96: Energieträger
B97: SIA 2031 | H97: Heizwert Energieträger
A98: =Langue!F201 -> Source d'énergie | B98: =Langue!F207 -> η ou COPa [-] | C98: =Langue!F208 -> Gaz à effet de serre [kg CO₂/kWh] | D98: =Langue!F209 -> Prix source d'énergie | E98: =Langue!F210 -> Unité
A99: =Langue!F202 -> Mazout | B99: 0.85 | C99: =0.082*3.6 -> 0.2952 | D99: 100 | E99: CHF/100 L | F99: =FeldEnergiepreis/(H99*100) -> 0.1 | H99: 10 | I99: kWh/l
A100: =Langue!F203 -> Gaz naturel | B100: 0.85 | C100: =0.067*3.6 -> 0.2412 | D100: 0.7 | E100: CHF/m3 | F100: =FeldEnergiepreis/(H100) -> 10 | H100: 10 | I100: kWh/m3
A101: =Langue!F204 -> Electricité (Mix CH) PAC Air-Eau | B101: 2.8 | C101: =0.043*3.6 -> 0.1548 | D101: 0.2 | E101: CHF/kWh | F101: =FeldEnergiepreis/(H101) -> 100 | H101: 1 | I101: kWh/kWh
A102: =Langue!F205 -> Electricité (Mix CH) PAC Eau/Sol-Eau | B102: 3.4 | C102: =0.043*3.6 -> 0.1548 | D102: 0.2 | E102: CHF/kWh | F102: =FeldEnergiepreis/(H102) -> 100 | H102: 1 | I102: kWh/kWh
A103: =Langue!F206 -> Pellets | B103: 0.7 | C103: 0.036 | D103: 40 | E103: CHF/100 kg | F103: =FeldEnergiepreis/(H103*100) -> 0.2 | H103: =18/3.6 -> 5 | I103: kWh/kg
B104: =VLOOKUP(FeldEnergietraeger,Liste_Energietraeger,2,FALSE) -> 0.85 | C104: =VLOOKUP(FeldEnergietraeger,Liste_Energietraeger,3,FALSE) -> 0.2952 | D104: =VLOOKUP(FeldEnergietraeger,Liste_Energietraeger,4,FALSE) -> 100
B105: =VLOOKUP(FeldEnergietraeger_V2,Liste_Energietraeger,2,FALSE) -> 0.85 | C105: =VLOOKUP(FeldEnergietraeger_V2,Liste_Energietraeger,3,FALSE) -> 0.2952 | D105: =VLOOKUP(FeldEnergietraeger,Liste_Energietraeger,4,FALSE) -> 100
A106: Amortisationszeit
A107: =Langue!F266 -> Temps d'amortissement | B107: =Langue!F214 -> Années
A108: =Langue!F211 -> Court | B108: 0.5
A109: =Langue!F212 -> Moyen | B109: 1.5
A110: =Langue!F213 -> Long | B110: 3

Sheet Calcul amortissement (hidden)
C1: ='Bases techniques'!J10 -> Isolation PIR | D1: ='Bases techniques'!L10 -> Comparaison
A3: Grundeingaben
A4: Länge Rohrleitung | B4: [m] | C4: =FeldLaengeRohrleitung -> 100 | D4: =FeldLaengeRohrleitung_V2 -> 100
A5: Nutzungsdauer | B5: [a] | C5: =ROUND(FeldNutzungszeitAnlage,0) -> 30 | D5: =ROUND(FeldNutzungszeitAnlage_V2,0) -> 30
A6: Amortisationsdauer | B6: [a] | C6: =FeldAmortisationIsolierung -> 1.5 | D6: =FeldAmortisationIsolierung_V2 -> 1.5
A7: Gewinnbringende Zeit | B7: [a] | C7: =C5-C6 -> 28.5 | D7: =D5-D6 -> 28.5
A9: Jährliche Energiekosten | F9: Einsparungen Nutzenergiebedarf
A10: Wärme-/Kältebedarf (Nutzenergie) | B10: [kWh/a] | C10: =IF(FeldMediumstemperatur>FeldUmgebungstemperatur,RWWärmestromRadWBR*FeldLaengeRohrleitung/1000*FeldBetriebszeitTag*30*FeldBetriebszeitJahr,RKWärmestromRadWBR*FeldLaengeRohrleitung/1000*FeldBetriebszeitTag*30*FeldBetriebszeitJahr) -> 6154.205795 | D10: =IF(FeldMediumstemperatur_V2>FeldUmgebungstemperatur_V2,RWWärmestromRadWBR_V2*FeldLaengeRohrleitung_V2/1000*FeldBetriebszeitTag_V2*30*FeldBetriebszeitJahr_V2,RKWärmestromRadWBR_V2*FeldLaengeRohrleitung_V2/1000*FeldBetriebszeitTag_V2*30*FeldBetriebszeitJahr_V2) -> 7178.56897 | F10: =(D10*D5)-(C10*C5) -> 30730.89523 | G10: kWh
A11: Wirkungsgrad | B11: [-] | C11: =FeldWirkungsgrad -> 0.85 | D11: =C11 -> 0.85
A12: Endenergiebedarf | B12: [kWh/a] | C12: =C10/C11 -> 7240.242112 | D12: =D10/D11 -> 8445.375259
A13: Energiepreis | B13: [CHF/kWh] | C13: =VLOOKUP(FeldEnergietraeger, 'Autres valeurs'!A99:F103,6,FALSE) -> 0.1 | D13: =C13 -> 0.1
A14: Energiepreissteigerung | B14: [%] | C14: =FeldEnergiepreissteigerung -> 1.5 | D14: =FeldEnergiepreissteigerung_V2 -> 1.5
A15: Jährliche Energiekosten | B15: [CHF/a] | C15: =C12*C13 -> 724.0242112 | D15: =D12*D13 -> 844.5375259 | F15: Einsparungen Energiekosten
A16: Mittelwertfaktor Energiekosten | B16: [-] | C16: =C15*$C$23 -> 913.2458739 | D16: =D15*$D$23 -> 1065.255 | F16: =(D12*D13*D23*D7)-(C12*C13*C23*C7) -> 4332.260083 | G16: CHF
A18: Energieträger | C18: =FeldEnergietraeger -> Mazout | D18: =FeldEnergietraeger_V2 -> Mazout
A19: Spez. THG-Emissionen | B19: [kg CO2/kWh] | C19: =FeldEmissionsfaktor -> 0.2952 | D19: =C19 -> 0.2952 | F19: Einsparungen THG-Emissionen
A20: THG-Emissionen | B20: [kg CO2/a] | C20: =C19*C12 -> 2137.319471 | D20: =D19*D12 -> 2493.074776 | F20: =(D12*D5*D19)-(C12*C5*C19) -> 10672.65914 | G20: Kg CO2
A22: Mittelwert Energiepreis | B22: [CHF/a] | C22: =AVERAGE(C27:INDIRECT("C"&27+C5)) -> 0.1261347148 | D22: =AVERAGE(C27:INDIRECT("D"&27+D5)) -> 0.1261347148
A23: Mittelwertfaktor Energiepreissteigerung | B23: [-] | C23: =C22/C27 -> 1.261347148 | D23: =D22/D27 -> 1.261347148
B26: Jahre | C26: Preisentwicklung [CHF/a]
B27: 0 | C27: =C13 -> 0.1 | D27: =D13 -> 0.1
B28: 1 | C28: =C27*(1+$C$14/100) -> 0.1015 | D28: =D27*(1+$C$14/100) -> 0.1015
B29: 2 | C29: =C28*(1+$C$14/100) -> 0.1030225 | D29: =D28*(1+$C$14/100) -> 0.1030225
B30: 3 | C30: 0.1045678375 | D30: 0.1045678375
B31: 4 | C31: 0.1061363551 | D31: 0.1061363551
B32: 5 | C32: 0.1077284004 | D32: 0.1077284004
B33: 6 | C33: 0.1093443264 | D33: 0.1093443264
B34: 7 | C34: 0.1109844913 | D34: 0.1109844913
B35: 8 | C35: 0.1126492587 | D35: 0.1126492587
B36: 9 | C36: 0.1143389975 | D36: 0.1143389975
B37: 10 | C37: 0.1160540825 | D37: 0.1160540825
B38: 11 | C38: 0.1177948937 | D38: 0.1177948937
B39: 12 | C39: 0.1195618171 | D39: 0.1195618171
B40: 13 | C40: 0.1213552444 | D40: 0.1213552444
B41: 14 | C41: 0.1231755731 | D41: 0.1231755731
B42: 15 | C42: 0.1250232067 | D42: 0.1250232067
B43: 16 | C43: 0.1268985548 | D43: 0.1268985548
B44: 17 | C44: 0.1288020331 | D44: 0.1288020331
B45: 18 | C45: 0.1307340636 | D45: 0.1307340636
B46: 19 | C46: 0.1326950745 | D46: 0.1326950745
B47: 20 | C47: 0.1346855007 | D47: 0.1346855007
B48: 21 | C48: 0.1367057832 | D48: 0.1367057832
B49: 22 | C49: 0.1387563699 | D49: 0.1387563699
B50: 23 | C50: 0.1408377155 | D50: 0.1408377155
B51: 24 | C51: 0.1429502812 | D51: 0.1429502812
B52: 25 | C52: 0.1450945354 | D52: 0.1450945354
B53: 26 | C53: 0.1472709534 | D53: 0.1472709534
B54: 27 | C54: 0.1494800177 | D54: 0.1494800177
B55: 28 | C55: 0.151722218 | D55: 0.151722218
B56: 29 | C56: 0.1539980513 | D56: 0.1539980513
B57: 30 | C57: 0.156308022 | D57: 0.156308022
B58: 31 | C58: 0.1586526424 | D58: 0.1586526424
B59: 32 | C59: 0.161032432 | D59: 0.161032432
B60: 33 | C60: 0.1634479185 | D60: 0.1634479185
B61: 34 | C61: 0.1658996373 | D61: 0.1658996373
B62: 35 | C62: 0.1683881318 | D62: 0.1683881318
B63: 36 | C63: 0.1709139538 | D63: 0.1709139538
B64: 37 | C64: 0.1734776631 | D64: 0.1734776631
B65: 38 | C65: 0.1760798281 | D65: 0.1760798281
B66: 39 | C66: 0.1787210255 | D66: 0.1787210255
B67: 40 | C67: 0.1814018409 | D67: 0.1814018409
B68: 41 | C68: 0.1841228685 | D68: 0.1841228685
B69: 42 | C69: 0.1868847115 | D69: 0.1868847115
B70: 43 | C70: 0.1896879822 | D70: 0.1896879822
B71: 44 | C71: 0.1925333019 | D71: 0.1925333019
B72: 45 | C72: 0.1954213014 | D72: 0.1954213014
B73: 46 | C73: 0.198352621 | D73: 0.198352621
B74: 47 | C74: 0.2013279103 | D74: 0.2013279103
B75: 48 | C75: 0.2043478289 | D75: 0.2043478289
B76: 49 | C76: 0.2074130464 | D76: 0.2074130464
B77: 50 | C77: 0.2105242421 | D77: 0.2105242421
B78: 51 | C78: 0.2136821057 | D78: 0.2136821057
B79: 52 | C79: 0.2168873373 | D79: 0.2168873373
B80: 53 | C80: 0.2201406473 | D80: 0.2201406473
B81: 54 | C81: 0.223442757 | D81: 0.223442757
B82: 55 | C82: 0.2267943984 | D82: 0.2267943984
B83: 56 | C83: 0.2301963144 | D83: 0.2301963144
B84: 57 | C84: 0.2336492591 | D84: 0.2336492591
B85: 58 | C85: 0.237153998 | D85: 0.237153998
B86: 59 | C86: 0.2407113079 | D86: 0.2407113079
B87: 60 | C87: 0.2443219776 | D87: 0.2443219776
B88: 61 | C88: 0.2479868072 | D88: 0.2479868072
B89: 62 | C89: 0.2517066093 | D89: 0.2517066093
B90: 63 | C90: 0.2554822085 | D90: 0.2554822085
B91: 64 | C91: 0.2593144416 | D91: 0.2593144416
B92: 65 | C92: 0.2632041582 | D92: 0.2632041582
B93: 66 | C93: =C92*(1+$C$14/100) -> 0.2671522206 | D93: 0.2671522206
B94: 67 | C94: 0.2711595039 | D94: 0.2711595039
B95: 68 | C95: 0.2752268965 | D95: 0.2752268965
B96: 69 | C96: 0.2793552999 | D96: 0.2793552999
B97: 70 | C97: 0.2835456294 | D97: 0.2835456294
B98: 71 | C98: 0.2877988139 | D98: 0.2877988139
B99: 72 | C99: 0.2921157961 | D99: 0.2921157961
B100: 73 | C100: 0.296497533 | D100: 0.296497533
B101: 74 | C101: 0.300944996 | D101: 0.300944996
B102: 75 | C102: 0.3054591709 | D102: 0.3054591709
B103: 76 | C103: 0.3100410585 | D103: 0.3100410585
B104: 77 | C104: 0.3146916744 | D104: 0.3146916744
B105: 78 | C105: 0.3194120495 | D105: 0.3194120495
B106: 79 | C106: 0.3242032302 | D106: 0.3242032302
B107: 80 | C107: 0.3290662787 | D107: 0.3290662787
B108: 81 | C108: 0.3340022729 | D108: 0.3340022729
B109: 82 | C109: =C108*(1+$C$14/100) -> 0.339012307 | D109: 0.339012307
B110: 83 | C110: 0.3440974916 | D110: 0.3440974916
B111: 84 | C111: 0.349258954 | D111: 0.349258954
B112: 85 | C112: 0.3544978383 | D112: 0.3544978383
B113: 86 | C113: 0.3598153058 | D113: 0.3598153058
B114: 87 | C114: 0.3652125354 | D114: 0.3652125354
B115: 88 | C115: 0.3706907235 | D115: 0.3706907235
B116: 89 | C116: 0.3762510843 | D116: 0.3762510843
B117: 90 | C117: 0.3818948506 | D117: 0.3818948506
B118: 91 | C118: 0.3876232733 | D118: 0.3876232733
B119: 92 | C119: 0.3934376224 | D119: 0.3934376224
B120: 93 | C120: 0.3993391868 | D120: 0.3993391868
B121: 94 | C121: 0.4053292746 | D121: 0.4053292746
B122: 95 | C122: 0.4114092137 | D122: 0.4114092137
B123: 96 | C123: 0.4175803519 | D123: 0.4175803519
B124: 97 | C124: 0.4238440572 | D124: 0.4238440572
B125: 98 | C125: =C124*(1+$C$14/100) -> 0.430201718 | D125: 0.430201718
B126: 99 | C126: 0.4366547438 | D126: 0.4366547438
B127: 100 | C127: 0.443204565 | D127: 0.443204565

Sheet Langue (hidden)
B2: Auswahl Sprachen | C2: Code
B3: Deutsch | C3: 1 | D3: Deutsch
B4: Français | C4: 2 | D4: Français
C8: Code der gewählten Sprachen. | D8: 2
F11: Texte, welche auch der Oberfläche vorkommen:
F13: Text der gewählten sprache | G13: Deutsch | H13: Français
F14: =IF($D$8=$C$3,G14,H14) -> Objet | G14: Objekt | H14: Objet
F15: =IF($D$8=$C$3,G15,H15) -> Nom | G15: Name | H15: Nom
F16: Rue | G16: Strasse | H16: Rue
F17: Lieu | G17: Ort | H17: Lieu
F18: Planificateur | G18: Planer | H18: Planificateur
F19: Entreprise | G19: Firma | H19: Entreprise
F20: Responsable du dossier | G20: Sachbearbeiter | H20: Responsable du dossier
F21: Tél. | G21: Tel. | H21: Tél.
F22: Email | G22: E-Mail | H22: Email
F23: Date du calcul | G23: Berechnungsdatum | H23: Date du calcul
F24: Questions à | G24: Rückfragen an | H24: Questions à
F25: Client | G25: Kunde | H25: Client
F26: Fax | G26: Fax | H26: Fax
F27: Outil de calcul PIR-RT2 | G27: Rechentool PIR-RT2 | H27: Outil de calcul PIR-RT2
F28: pour isolation de conduites dans le domaine thermique ou frigorifique | G28: für Rohrdämmungen im Wärme- und Kältebereich. | H28: pour isolation de conduites dans le domaine thermique ou frigorifique
F29: Remarques | G29: Bemerkungen | H29: Remarques
F30: Cet outil a été créé par l'université appliquée de Lucerne dans l'interêt du développment de proPIR. | G30: Das vorliegende Tool wurde von der Hochule Technik & Architektur Luzern im Auftrag der Interessengemeinschaft proPIR entwickelt. | H30: Cet outil a été créé par l'université appliquée de Lucerne dans l'interêt du développment de proPIR.
F31: ProPIR ne prend pas la responsabilité des dégâts qui peuvent être engendrés par l'utilisation de cet outil. | G31: ProPIR haftet nicht für Schäden, die durch die Anwendung des vorliegenden Tools entstehen können. | H31: ProPIR ne prend pas la responsabilité des dégâts qui peuvent être engendrés par l'utilisation de cet outil.
F32: Calculer | G32: Berechnen | H32: Calculer
F33: Cet outil excel sert à calculer l'isolation de conduites et estimer les économies de coûts/énergie/CO₂ entre une isolation PIR et une isolation quelconque (variante 2). En ce qui concerne la technique de chauffage, cet outil calcule en outre la temperature de surface des conduites et donc les mesures de protection thermique ou frigorifique. L'eau de condensation et par conséquence, la protection contre l'humidité, est également estimée. | G33: Dieses einfache Excel-Tool dient zur Berechnung der Dämmungen rund um Rohre und zur Abschätzung der Kosten/Energie/CO2-Einsparungen zwischen der Variante mit PIR Dämmung und einer Variante mit beliebiger Dämmung. Für die Heizungstechnik kann damit der Wärme- und Berührungsschutz, für die Kältetechnik der Kälte-, Tauwasser- und Feuchteschutz berechnet werden. | H33: Cet outil excel sert à calculer l'isolation de conduites et estimer les économies de coûts/énergie/CO₂ entre une isolation PIR et une isolation quelconque (variante 2). En ce qui concerne la technique de chauffage, cet outil calcule en outre la temperature de surface des conduites et donc les mesures de protection thermique ou frigorifique. L'eau de condensation et par conséquence, la protection contre l'humidité, est également estimée.
F34: Ces calculs se limitent aux fluides et sont définis dans des des codes makros. | G34: Die Berechnungen beschränken sich auf flüssige Medien und basieren auf Codes, welche in Makros hinterlegt sind. | H34: Ces calculs se limitent aux fluides et sont définis dans des des codes makros.
F35: Imprimer | G35: Drucken | H35: Imprimer
F36: Données de base pour le calcul | G36: Grundlagen für die Berechnung | H36: Données de base pour le calcul
F37: Les valeurs définies servent d'aide pour un calcul "habituel". | G37: Die hinterlegten Kennwerte dienen als Hilfestellung für "übliche" Berechnungen. | H37: Les valeurs définies servent d'aide pour un calcul "habituel".
F38: Conduite | G38: Rohrleitung | H38: Conduite
F39: Matériau | G39: Material | H39: Matériau
F40: Diffusion de chaleur | G40: Wärmeleitfähigkeit | H40: Diffusion de chaleur
F41: Epaisseur paroi | G41: Wandstärke | H41: Epaisseur paroi
F42: Isolation | G42: Dämmung | H42: Isolation
F43: =IF($D$8=$C$3,G43,H43) -> Matériau | G43: Material | H43: Matériau
F44: =IF($D$8=$C$3,G44,H44) -> Donnée matériau, remarques pour propres données | G44: Produktbezeichnung, Bemerkung zu benutzerdefinierte Eingaben | H44: Donnée matériau, remarques pour propres données
F45: =IF($D$8=$C$3,G45,H45) -> Diffusion de chaleur déclarée à 10°C | G45: Wärmeleitfähigkeit deklariert bei 10°C | H45: Diffusion de chaleur déclarée à 10°C
F46: Diamètre intérieur de l'isolation | G46: Innendurchmesser (Ø Rohraussendruchmesser) | H46: Diamètre intérieur de l'isolation
F47: Epaisseur de l'isolation | G47: Isolierstärke (Dicke der Isolierung) | H47: Epaisseur de l'isolation
F48: Résistance de diffusion de vapeur | G48: Wasserdampfdiffusionswiderstand | H48: Résistance de diffusion de vapeur
F49: Supplément appuis (p.ex. Collier de serrage, étais) | G49: Zuschlag Unterkonstruktion (z.B. Rohrschellen, Stützen) | H49: Supplément appuis (p.ex. Collier de serrage, étais)
F50: Valeur | G50: Wert | H50: Valeur
F51: Emissivité doublage | G51: Emissionsgrad Ummantelung | H51: Emissivité doublage
F52: Valeur | G52: Wert | H52: Valeur
F53: Supplément surface de conduite non isolée | G53: Zuschlag ungedämmte Rohroberfläche | H53: Supplément surface de conduite non isolée
F54: Valeur | G54: Wert | H54: Valeur
F55: Direction | G55: Ausrichtung | H55: Direction
F56: Agent caloporteur | G56: Medium | H56: Agent caloporteur
F57: Température | G57: Temperatur | H57: Température
F58: Environnement | G58: Umgebung | H58: Environnement
F59: Température d'air | G59: Lufttemperatur | H59: Température d'air
F60: Humidité relative | G60: relative Feuchte | H60: Humidité relative
F61: Vitesse du vent | G61: Windgeschwindigkeit | H61: Vitesse du vent
F62: Valeur vitesse vent | G62: Wert Windgeschwindigkeit | H62: Valeur vitesse vent
F63: Protection contacts fortuits (seul. Chaleur) | G63: Berührungsschutz (nur für Wärmeschutz) | H63: Protection contacts fortuits (seul. Chaleur)
F64: Température de surface maximale admissible | G64: Höchst zulässige Oberflächentemperatur | H64: Température de surface maximale admissible
F65: Barrière pare-vapeur (seulement pour la protection frigorifique) | G65: Dampfbremse (nur für Kälteschutz) | H65: Barrière pare-vapeur (seulement pour la protection frigorifique)
F66: Appellation | G66: Bezeichnung | H66: Appellation
F67: Epaisseur couche d'air équivalente de diffusion | G67: Diffusionsäquivalente Luftschichtdicke | H67: Epaisseur couche d'air équivalente de diffusion
F68: Epaisseur barrière pare-vapeur | G68: Dicke Dampfbremse | H68: Epaisseur barrière pare-vapeur
F69: Inétanchéité barrière pare-vapeur | G69: Undichtheiten Dampfbremse | H69: Inétanchéité barrière pare-vapeur
F70: Valeur limite augmentation humidité en 10 ans | G70: Grenzwert für Feuchtezunahme in 10 Jahren | H70: Valeur limite augmentation humidité en 10 ans
F71: Economie | G71: Wirtschaftlichkeit | H71: Economie
F72: Temps de fonctionnement journalier | G72: Tägliche Betriebszeit | H72: Temps de fonctionnement journalier
F73: Temps de fonctionnement annuel | G73: Jährliche Betriebszeit | H73: Temps de fonctionnement annuel
F74: Longueur conduite | G74: Länge Rohrleitung | H74: Longueur conduite
F75: Source d'énergie | G75: Energieträger | H75: Source d'énergie
F76: Rendement ou COPa installation | G76: Wirkungsgrad oder JAZ Anlage | H76: Rendement ou COPa installation
F77: Facteur spécifique de gaz à effet de serre | G77: Spezifischer THG-Emissionsfaktor | H77: Facteur spécifique de gaz à effet de serre
F78: Prix spécifique source d'énergie | G78: Spezifischer Preis Energieträger | H78: Prix spécifique source d'énergie
F79: Prix spécifique isolation | G79: Spezifischer Preis Isolierung | H79: Prix spécifique isolation
F80: Temps d'amortissement isolation | G80: Amortisationszeit Isolierung | H80: Temps d'amortissement isolation
F81: =IF($D$8=$C$3,G81,H81) -> Durée d'utilisation de l'installation | G81: Nutzungszeit der Anlage | H81: Durée d'utilisation de l'installation
F82: Augmentation du coût d'énergie | G82: Energiepreissteigerung | H82: Augmentation du coût d'énergie
F83: Les paramètres caractéristiques sont des valeurs moyennes de différents produits du même type de matériau. | G83: Die hinterlegten Kennwerte sind Durschnittswerte verschiedern Produkte der gleichen Materialart | H83: Les paramètres caractéristiques sont des valeurs moyennes de différents produits du même type de matériau.
F84: Pour les zones limites, il est possible d'attribuer des propres valeurs certifiées. | G84: Für Grenzbereiche können produktspezifische, nachgewiesene Kennwerte eingegeben werden. | H84: Pour les zones limites, il est possible d'attribuer des propres valeurs certifiées.
F85: Valeurs communes | G85: Gemeinsame Werte | H85: Valeurs communes
F86: PIR | G86: PIR | H86: PIR
F87: Variante 2 | G87: Variante 2 | H87: Variante 2
F88: Valeur proposée, | G88: Vorschlagswerte, | H88: Valeur proposée,
F89: en partie modifiable | G89: teilweise änderbar | H89: en partie modifiable
F90: Indication: pour l'acier et le cuivre, données pas obligatoires. | G90: Hinweis: Bei Stahl oder Kupfer kann auf die Eingabe verzichtet werden. | H90: Indication: pour l'acier et le cuivre, données pas obligatoires.
F91: =IF($D$8=$C$3,G91,H91) -> Choix matériau influence λD, u et Fli. | G91: Auswahl Material beeinflusst λD, u und Fli | H91: Choix matériau influence λD, u et Fli.
F92: Résultats protection thermique | G92: Resultate Wärmeschutz | H92: Résultats protection thermique
F93: Résultats partiels du calcul | G93: Teilergebnisse der Berechnung | H93: Résultats partiels du calcul
F94: Conductibilité thermique à la température moyenne d'isolation 35 °C | G94: =CONCATENATE("Wärmeleitfähigkeit bei Dämmmitteltemperatur ",(FeldMediumstemperatur+FeldUmgebungstemperatur)/2, " °C") -> Wärmeleitfähigkeit bei Dämmmitteltemperatur 35 °C | H94: =CONCATENATE("Conductibilité thermique à la température moyenne d'isolation ", (FeldMediumstemperatur+FeldUmgebungstemperatur)/2, " °C") -> Conductibilité thermique à la température moyenne d'isolation 35 °C
F95: Transmission thermique extérieure | G95: Wärmeübergang aussen | H95: Transmission thermique extérieure
F96: Températur de surface | G96: Oberflächentemperatur | H96: Températur de surface
F97: Isolation PIR | G97: PIR - Isolierung | H97: Isolation PIR
F98: Comparaison | G98: Vergleichsvariante | H98: Comparaison
F99: Pertes de chaleur | G99: Leistungen | H99: Pertes de chaleur
F100: Résistance linéaire au passage de chaleur | G100: längenbezogener Wärmedurchlasswiderstand | H100: Résistance linéaire au passage de chaleur
F101: Flux de chaleur radial | G101: Wärmestrom rad. | H101: Flux de chaleur radial
F102: Flux de chaleur radial (incl. ponts thermiques) | G102: Wärmestrom rad. inkl. Wärmebrücken | H102: Flux de chaleur radial (incl. ponts thermiques)
F103: Les valeurs définies sont des valeurs moyennes de différents produits du même type de matériau. | G103: Die hinterlegten Kennwerte sind Durchschnittswerte verschiedener Produkte der gleichen Materialart. | H103: Les valeurs définies sont des valeurs moyennes de différents produits du même type de matériau.
F104: Pour des zones limites, des valeurs spécifiques attestées peuvent être insérées dans les cellules non protégées. | G104: Für Grenzbereiche können in nicht gesperrten Feldern produktspezifische, nachgewiesene Kennwerte eingegeben werden. | H104: Pour des zones limites, des valeurs spécifiques attestées peuvent être insérées dans les cellules non protégées.
F105: Protection contacts fortuits | G105: Berührungsschutz | H105: Protection contacts fortuits
F106: Temperature de surface | G106: Oberflächentemperatur | H106: Temperature de surface
F107: Valeur limite protection contacts fortuits inférieure (40°) | G107: =CONCATENATE("Grenzwert Berührungsschutz unterschritten (",FeldBerührungsschtzTemp, "°)") -> Grenzwert Berührungsschutz unterschritten (40°) | H107: =CONCATENATE("Valeur limite protection contacts fortuits inférieure (",FeldBerührungsschtzTemp, "°)") -> Valeur limite protection contacts fortuits inférieure (40°)
F108: Epaisseur isolation selon MuKEn | G108: Dämmstärke nach MuKEn | H108: Epaisseur isolation selon MuKEn
F109: Epaisseur isolation selon normes (λD à 10°C) | G109: Gesetzliche Dämmstärke (λD bei 10°C) | H109: Epaisseur isolation selon normes (λD à 10°C)
F110: Recommandation selon MuKEn remplies | G110: Anforderungen nach MuKEn erfüllt? | H110: Recommandation selon MuKEn remplies
F111: Les directives cantonales doivent toujours | G111: Die Kantonalen Energievorschriften müssen immer | H111: Les directives cantonales doivent toujours
F112: être remplies! | G112: eingehalten werden! | H112: être remplies!
F113: Résultats | G113: Resultate | H113: Résultats
F114: Pertes énergétiques annuelles | G114: Jährlicher Energieverlust | H114: Pertes énergétiques annuelles
F115: Pertes coûts énergétiques annuelles | G115: Jährliche Energieverlustkosten | H115: Pertes coûts énergétiques annuelles
F116: Emissions de gaz à effet de serre annuelles | G116: Jährliche CO₂-Emissionen | H116: Emissions de gaz à effet de serre annuelles
F117: Economie Variante 1 par rapport à Variante 2 sur une durée d'utilisation de 30 ans | G117: =CONCATENATE("Einsparung ",'Résultats thermiques'!J8," gegenüber ",'Résultats thermiques'!L8, " über eine Nutzungszeit von ",FeldNutzungszeitAnlage, " Jahre") -> Einsparung Variante 1 gegenüber Variante 2 über eine Nutzungszeit von 30 Jahre | H117: =CONCATENATE("Economie ",'Résultats thermiques'!J8," par rapport à ",'Résultats thermiques'!L8, " sur une durée d'utilisation de ",FeldNutzungszeitAnlage, " ans") -> Economie Variante 1 par rapport à Variante 2 sur une durée d'utilisation de 30 ans
F118: Economie d'énergie sur une durée d'utilisation de 30 ans | G118: =CONCATENATE("Einsparung Energie über eine Nutzungszeit von ",FeldNutzungszeitAnlage, " Jahren") -> Einsparung Energie über eine Nutzungszeit von 30 Jahren | H118: =CONCATENATE("Economie d'énergie sur une durée d'utilisation de ",FeldNutzungszeitAnlage, " ans") -> Economie d'énergie sur une durée d'utilisation de 30 ans
F119: Economie de coûts sur une durée d'utilisation de 30 ans | G119: =CONCATENATE("Einsparung Kosten über eine Nutzungszeit von ",FeldNutzungszeitAnlage, " Jahren") -> Einsparung Kosten über eine Nutzungszeit von 30 Jahren | H119: =CONCATENATE("Economie de coûts sur une durée d'utilisation de ",FeldNutzungszeitAnlage, " ans") -> Economie de coûts sur une durée d'utilisation de 30 ans
F120: Economie de CO₂ sur une durée d'utilisation de 30 ans | G120: =CONCATENATE("Einsparung CO₂ über eine Nutzungszeit von ",FeldNutzungszeitAnlage, " Jahren") -> Einsparung CO₂ über eine Nutzungszeit von 30 Jahren | H120: =CONCATENATE("Economie de CO₂ sur une durée d'utilisation de ",FeldNutzungszeitAnlage, " ans") -> Economie de CO₂ sur une durée d'utilisation de 30 ans
F121: Mois/Année | G121: Monate/Jahr | H121: Mois/Année
F122: Oui | G122: Ja | H122: Oui
F123: Non | G123: Nein | H123: Non
F124: Oui/non | G124: ja/nein | H124: Oui/non
F125: Résultats protection frigorifique | G125: Resultate Kälteschutz | H125: Résultats protection frigorifique
F126: Pertes frigorifique | G126: Leistungen | H126: Pertes frigorifique
F127: Eau de condensation | G127: Tauwasserschutz | H127: Eau de condensation
F128: Température de surface | G128: Oberflächentemperatur | H128: Température de surface
F129: Point de rosée, température de surface min. | G129: Taupunkt, min. Oberflächentemperatur Tauwasserschutz | H129: Point de rosée, température de surface min.
F130: Formation condensation à la surface? | G130: Entsteht Tauwasser an der Oberfläche? | H130: Formation condensation à la surface?
F131: =IF($D$8=$C$3,G131,H131) -> Protection d'humidité | G131: Feuchteschutz | H131: Protection d'humidité
F132: Valeur de référence de la barrière pare-vapeur | G132: Wasserdampfleitzahl der Dampfbremse | H132: Valeur de référence de la barrière pare-vapeur
F133: Valeur de référence de l'isolation | G133: Wasserdampfleitzahl der Dämmung | H133: Valeur de référence de l'isolation
F134: Résistance de diffusion de vapeur | G134: Dampfdurchgangswiderstand | H134: Résistance de diffusion de vapeur
F135: Pression de vapeur saturée environnement | G135: Sättigungsdampfdruck Umgebung | H135: Pression de vapeur saturée environnement
F136: Différence partielle de pression | G136: Partialdruckdifferenz | H136: Différence partielle de pression
F137: Flux diffusion horaire | G137: Diffusionsstrom pro Stunde | H137: Flux diffusion horaire
F138: Volume couche d'isolation | G138: Volumen Dämmschicht | H138: Volume couche d'isolation
F139: Augmentation d'humidité en 10 ans (valeur limite V1: 3% et V2: 1%) | G139: =CONCATENATE("Feuchtezunahme in 10 Jahren (Grenzwert V1: ",FeldFli, "% und V2: ",FeldFli_V2," %)") -> Feuchtezunahme in 10 Jahren (Grenzwert V1: 3% und V2: 1 %) | H139: =CONCATENATE("Augmentation d'humidité en 10 ans (valeur limite V1: ",FeldFli,"% et V2: ",FeldFli_V2, "%)") -> Augmentation d'humidité en 10 ans (valeur limite V1: 3% et V2: 1%)
F140: Instructions | G140: Anleitung | H140: Instructions
F141: Matériaux | G141: Materialien | H141: Matériaux
F142: Acier soudé | G142: Stahlrohre geschweisst | H142: Acier soudé
F143: Acier | G143: Stahlrohr | H143: Acier
F144: Acier CrNi, acier précieux, inox | G144: CrNi-Stahl, Edelstahl, inox | H144: Acier CrNi, acier précieux, inox
F145: Cu (Cuivre) | G145: Cu (Kupfer) | H145: Cu (Cuivre)
F146: Plastique | G146: Kunststoffe | H146: Plastique
F147: Epaisseur paroi [mm] | G147: Wandstärke [mm] | H147: Epaisseur paroi [mm]
F148: Type | G148: Art | H148: Type
F149: Horizontal | G149: Horizontal | H149: Horizontal
F150: Vertical | G150: Vertikal | H150: Vertical
F151: Appellation | G151: Bezeichnung | H151: Appellation
F152: Dedans, sans vent | G152: Innen, windstill | H152: Dedans, sans vent
F153: Dehors, couvert, petite brise | G153: Aussen, gedeckt, leiser Zug | H153: Dehors, couvert, petite brise
F154: Dehors, ouvert, vent faible | G154: Aussen, frei, schwacher Wind | H154: Dehors, ouvert, vent faible
F155: Dehors, ouvert, vent frais | G155: Aussen, frei, frischer Wind | H155: Dehors, ouvert, vent frais
F156: Type d'appuis | G156: Art der Unterkonstruktion | H156: Type d'appuis
F157: Aucun appui | G157: Keine Unterkonstruktion | H157: Aucun appui
F158: … en matériaux isolants | G158: ... aus dämmendem Werkstoff | H158: … en matériaux isolants
F159: … en acier, isolé | G159: ... aus Stahl, gedämmt | H159: … en acier, isolé
F160: … en acier, non isolé | G160: ... aus Stahl, ungedämmt | H160: … en acier, non isolé
F161: Supplément [W/(mK)] | G161: Zuschlag [W/(mK)] | H161: Supplément [W/(mK)]
F162: Type de surface | G162: Art der Oberfläche | H162: Type de surface
F163: Pas de doublage | G163: Keine Ummantelung | H163: Pas de doublage
F164: Tôle d'aluminium anodisée | G164: Aluminium eloxiert | H164: Tôle d'aluminium anodisée
F165: Tôle d'aluminium oxydée | G165: Aluminium oxydiert | H165: Tôle d'aluminium oxydée
F166: Tôle d'aluminium très oxydée | G166: Aluminium stark oxydiert | H166: Tôle d'aluminium très oxydée
F167: Tôle d'aluminium laminée brute | G167: Aluminium walzblank | H167: Tôle d'aluminium laminée brute
F168: Protection contre les contacts fortuits métalliques | G168: Berührungsschutz, metallisch | H168: Protection contre les contacts fortuits métalliques
F169: Protection contre les contacts fortuits non métalliques | G169: Berührungsschutz, nicht metallisch | H169: Protection contre les contacts fortuits non métalliques
F170: Tôle d'acier CrNi inoxydable | G170: nicht rostendes CrNi-Stahlblech | H170: Tôle d'acier CrNi inoxydable
F171: Tôle d'acier enduite | G171: Stahlblech farbbeschichtet | H171: Tôle d'acier enduite
F172: Tôle d'acier rouillée | G172: Stahlblech gerostet | H172: Tôle d'acier rouillée
F173: Tôle d'acier très rouillée | G173: Stahlblech stark angerostet | H173: Tôle d'acier très rouillée
F174: Tôle d'acier galvanisé brute | G174: Stahlblech verzinkt, blank | H174: Tôle d'acier galvanisé brute
F175: Tôle d'acier galvanisé poussiéreux | G175: Stahlblech verzinkt, verstaubt | H175: Tôle d'acier galvanisé poussiéreux
F176: Doublage métallique neuf | G176: Ummantelung metallisch neu | H176: Doublage métallique neuf
F177: Doublage non métalique (p.e. PVC) | G177: Ummantelung nicht metallisch (z.B. PVC) | H177: Doublage non métalique (p.e. PVC)
F178: Doublage métallique ayant déjà servi (poussiéreux) | G178: Ummantelung metallisch, betriebszustand (verstaubt) | H178: Doublage métallique ayant déjà servi (poussiéreux)
F179: Doublage non métalique (limiter pertes chaleur) | G179: Ummantelung nicht metallisch (Wärmeschutz) | H179: Doublage non métalique (limiter pertes chaleur)
F180: Ponts thermiques | G180: Wärmebrücken | H180: Ponts thermiques
F181: Aucuns | G181: Keine | H181: Aucuns
F182: Peu | G182: Wenige | H182: Peu
F183: Normal | G183: Übliche | H183: Normal
F184: Beaucoup | G184: Viele | H184: Beaucoup
F185: Supplément [%] | G185: Zuschlag [%] | H185: Supplément [%]
F186: =IF($D$8=$C$3,G186,H186) -> Matériau | G186: Material | H186: Matériau
F187: Aucun | G187: Keine | H187: Aucun
F188: Couche bitumée, sèche (10;1) | G188: Bitumenbeschichtungen, Trockenschichtdicke (10;1) | H188: Couche bitumée, sèche (10;1)
F189: Couche bitumée, sèche (50;2) | G189: Bitumenbeschichtungen, Trockenschichtdicke (50;2) | H189: Couche bitumée, sèche (50;2)
F190: Couche bitumée, sèche (100;3) | G190: Bitumenbeschichtungen, Trockenschichtdicke (100;3) | H190: Couche bitumée, sèche (100;3)
F191: Rubans adésifs PE 0.4 mm | G191: Klebebänder, PE 0.4 mm dick | H191: Rubans adésifs PE 0.4 mm
F192: Rubans adésifs ALU 0.05 mm | G192: Klebebänder, ALU 0.05 mm dick | H192: Rubans adésifs ALU 0.05 mm
F193: Feuille ALU 0.1 mm jonctions collées | G193: Folien, ALU 0.1 mm dick, Stösse überklebt | H193: Feuille ALU 0.1 mm jonctions collées
F194: Doublage tôle. joints etc. non imperméablilisés | G194: Blechummantelungen, Sicken usw. nicht gedichtet | H194: Doublage tôle. joints etc. non imperméablilisés
F195: Doublage tôle. joints etc. imperméablilisés | G195: Blechummantelungen, Sicken usw. gedichtet | H195: Doublage tôle. joints etc. imperméablilisés
F196: Plastiques liquides, sèche (50;2) | G196: Flüssigkunststoffe, Trockenschichtdicke (50;2) | H196: Plastiques liquides, sèche (50;2)
F197: Plastiques liquides, sèche (20;1) | G197: Flüssigkunststoffe, Trockenschichtdicke (20;1) | H197: Plastiques liquides, sèche (20;1)
F198: PIR ALU-Pet - Feuille | G198: PIR ALU-Pet - Folie | H198: PIR ALU-Pet - Feuille
F199: =IF($D$8=$C$3,G199,H199) -> Epaisseur L équivalente [m] | G199: äqui. L-Dicke [m] | H199: Epaisseur L équivalente [m]
F200: =IF($D$8=$C$3,G200,H200) -> Epaisseur [mm] | G200: Dicke [mm] | H200: Epaisseur [mm]
F201: Source d'énergie | G201: Energieträger | H201: Source d'énergie
F202: Mazout | G202: Heizöl | H202: Mazout
F203: Gaz naturel | G203: Erdgas | H203: Gaz naturel
F204: Electricité (Mix CH) PAC Air-Eau | G204: Strom (CH-Mix) Luft-Wasser Wärmepumpe | H204: Electricité (Mix CH) PAC Air-Eau
F205: Electricité (Mix CH) PAC Eau/Sol-Eau | G205: Strom (CH-Mix) Wasser,Sole-Wasser Wärmepumpe | H205: Electricité (Mix CH) PAC Eau/Sol-Eau
F206: Pellets | G206: Pellets | H206: Pellets
F207: η ou COPa [-] | G207: η oder JAZ [-] | H207: η ou COPa [-]
... 97 more rows

Sheet History (hidden)
A1: Datum | B1: Wer | C1: Was | D1: Umgesetzt
A2: 2014-08-06 | B2: MM | C2: In der Mappe Anleitung Inhalt in Zelle F53 entfernt, weil Beschluss, dass diese Anleitung vorerst nicht veröfffentlicht wird. "Anleitung zum Rechentoll PIR-RT2 (asuführliche Version) | D2: HSLU : DH 30.08.14 Version PIR_RT2 MM an DH gesandt
A3: 2014-08-28 | B3: MM | C3: Name Broschüre „PIR – der Hochleistungswärmedämmstoff“ angepasst d/f in Mappe Sprache Zeile 280, 282 | D3: HSLU : DH 30.08.14 Version PIR_RT2 MM an DH gesandt
A4: 2014-09-17 | B4: MM | C4: ACHTUNG : Version auf 3.1 erhöht / Adressen in Mappe Sprache ergänzt ab Zeile 319. Feld B37 in Mappe Start freigeschaltet (versteckt) / Damit kann die Reihenfolge der Adressen in allen Mappen gesteuert werden. 1 := Elri / Regisol / swisspor 2 := Regisol / swisspor / Elri 3:= swisspor / Elri / Regisol | D4: Auf CD verteilt an proPIR am 23.9.2014
A5: 2014-09-25 | B5: MM | C5: Text Zelle E7 und E11 in Mappe Start werden abgeschnitten. Schriftgrösse in beiden Zellen auf 10 angepasst. Projektbenennung im VisualBasic mit RM auf Projekt > Eigenschaften Projektnamen von swisspor_Dämmberechnung auf Rechentool_PIR_RT2 geändert Sprache Zelle 129 angepasst auf "Taupunkt, min. Oberflächentemperatur Tauwasserschutz", "Point de rosée, température de surface min" Standartwerte u Kautschuk auf 10'000
